Workbook

Sheet HFG
AF1: Tel. +49 (0)711 8201-180 | AJ1: Fax: -720 | CF1: Email: | CH1: info@ltg-ag.de
AF2: =VLOOKUP("LTG Induktionsgerät HFG",'Legende - Legend'!$B$5:$E$64,IF(Sprache="Deutsch",1,IF(Sprache="English",2,IF(Sprache="Francais",3,IF(Sprache="Italiano",4,IF(Sprache="Portugues",5,6))))),FALSE) -> LTG Induktionsgerät HFG | CL2: LTG Aktiengesellschaft
AJ3: =VLOOKUP("Filter",'Legende - Legend'!$B$5:$E$64,IF(Sprache="Deutsch",1,IF(Sprache="English",2,IF(Sprache="Francais",3,IF(Sprache="Italiano",4,IF(Sprache="Portugues",5,6))))),FALSE) -> Filter
AJ4: =VLOOKUP("Düsenvariante",'Legende - Legend'!$B$5:$E$64,IF(Sprache="Deutsch",1,IF(Sprache="English",2,IF(Sprache="Francais",3,IF(Sprache="Italiano",4,IF(Sprache="Portugues",5,6))))),FALSE) -> Düsenvariante
AJ5: =VLOOKUP("Wärmetauscher",'Legende - Legend'!$B$5:$E$64,IF(Sprache="Deutsch",1,IF(Sprache="English",2,IF(Sprache="Francais",3,IF(Sprache="Italiano",4,IF(Sprache="Portugues",5,6))))),FALSE) -> Wärmetauscher
AH6: =VLOOKUP("Kühlfall",'Legende - Legend'!$B$5:$E$64,IF(Sprache="Deutsch",1,IF(Sprache="English",2,IF(Sprache="Francais",3,IF(Sprache="Italiano",4,IF(Sprache="Portugues",5,6))))),FALSE) -> Kühlfall | AO6: =VLOOKUP("Heizfall",'Legende - Legend'!$B$5:$E$64,IF(Sprache="Deutsch",1,IF(Sprache="English",2,IF(Sprache="Francais",3,IF(Sprache="Italiano",4,IF(Sprache="Portugues",5,6))))),FALSE) -> Heizfall
AJ7: =VLOOKUP("Ansaugtemperatur",'Legende - Legend'!$B$5:$E$64,IF(Sprache="Deutsch",1,IF(Sprache="English",2,IF(Sprache="Francais",3,IF(Sprache="Italiano",4,IF(Sprache="Portugues",5,6))))),FALSE) -> Ansaugtemperatur | AK7: 26 | AM7: °C | AQ7: =VLOOKUP("Ansaugtemperatur",'Legende - Legend'!$B$5:$E$64,IF(Sprache="Deutsch",1,IF(Sprache="English",2,IF(Sprache="Francais",3,IF(Sprache="Italiano",4,IF(Sprache="Portugues",5,6))))),FALSE) -> Ansaugtemperatur | AR7: 22 | AS7: °C | CO7: Deutsch
AJ8: =VLOOKUP("Primärlufttemperatur",'Legende - Legend'!$B$5:$E$64,IF(Sprache="Deutsch",1,IF(Sprache="English",2,IF(Sprache="Francais",3,IF(Sprache="Italiano",4,IF(Sprache="Portugues",5,6))))),FALSE) -> Primärlufttemperatur | AK8: 16 | AM8: °C | AQ8: =VLOOKUP("Primärlufttemperatur",'Legende - Legend'!$B$5:$E$64,IF(Sprache="Deutsch",1,IF(Sprache="English",2,IF(Sprache="Francais",3,IF(Sprache="Italiano",4,IF(Sprache="Portugues",5,6))))),FALSE) -> Primärlufttemperatur | AR8: 18 | AS8: °C | CC8: Project:
AJ9: =VLOOKUP("Primärluftvolumenstrom",'Legende - Legend'!$B$5:$E$64,IF(Sprache="Deutsch",1,IF(Sprache="English",2,IF(Sprache="Francais",3,IF(Sprache="Italiano",4,IF(Sprache="Portugues",5,6))))),FALSE) -> Primärluftvolumenstrom | AK9: 67 | AM9: m^3/h | AQ9: =VLOOKUP("Primärluftvolumenstrom",'Legende - Legend'!$B$5:$E$64,IF(Sprache="Deutsch",1,IF(Sprache="English",2,IF(Sprache="Francais",3,IF(Sprache="Italiano",4,IF(Sprache="Portugues",5,6))))),FALSE) -> Primärluftvolumenstrom | AR9: =Primärvolumenstrom -> 67 | AS9: m^3/h
AJ10: =VLOOKUP("Wasservorlauftemperatur",'Legende - Legend'!$B$5:$E$64,IF(Sprache="Deutsch",1,IF(Sprache="English",2,IF(Sprache="Francais",3,IF(Sprache="Italiano",4,IF(Sprache="Portugues",5,6))))),FALSE) -> Wasservorlauftemperatur | AK10: 16 | AM10: °C | AQ10: =VLOOKUP("Wasservorlauftemperatur",'Legende - Legend'!$B$5:$E$64,IF(Sprache="Deutsch",1,IF(Sprache="English",2,IF(Sprache="Francais",3,IF(Sprache="Italiano",4,IF(Sprache="Portugues",5,6))))),FALSE) -> Wasservorlauftemperatur | AR10: 32 | AS10: °C
AJ11: =VLOOKUP("Taupunkttemperatur",'Legende - Legend'!$B$5:$E$64,IF(Sprache="Deutsch",1,IF(Sprache="English",2,IF(Sprache="Francais",3,IF(Sprache="Italiano",4,IF(Sprache="Portugues",5,6))))),FALSE) -> Taupunkttemperatur | AK11: =(241.2*LN(AK12/100)+4222.03716*AK7/(241.2+AK7))/(17.5043-LN(AK12/100)-17.5043*AK7/(241.2+AK7)) -> 14.77125892 | AM11: °C | CC11: Date: | CD11: 6
AJ12: =VLOOKUP("rel. Raumluftfeuchte",'Legende - Legend'!$B$5:$E$64,IF(Sprache="Deutsch",1,IF(Sprache="English",2,IF(Sprache="Francais",3,IF(Sprache="Italiano",4,IF(Sprache="Portugues",5,6))))),FALSE) -> rel. Raumluftfeuchte | AK12: 50 | AM12: % | CC12: Name:
AJ13: =VLOOKUP("projektierte Leistung",'Legende - Legend'!$B$5:$E$64,IF(Sprache="Deutsch",1,IF(Sprache="English",2,IF(Sprache="Francais",3,IF(Sprache="Italiano",4,IF(Sprache="Portugues",5,6))))),FALSE) -> projektierte Leistung | AK13: 200 | AM13: W | AQ13: =VLOOKUP("projektierte Leistung",'Legende - Legend'!$B$5:$E$64,IF(Sprache="Deutsch",1,IF(Sprache="English",2,IF(Sprache="Francais",3,IF(Sprache="Italiano",4,IF(Sprache="Portugues",5,6))))),FALSE) -> projektierte Leistung | AR13: 1200 | AS13: W
AG19: =VLOOKUP(" Düsenbelegung anzeigen (Kunstoffdüsen)",'Legende - Legend'!$B$5:$E$64,IF(Sprache="Deutsch",1,IF(Sprache="English",2,IF(Sprache="Francais",3,IF(Sprache="Italiano",4,IF(Sprache="Portugues",5,6))))),FALSE) -> Düsenbelegung anzeigen (Kunstoffdüsen) | AW19: ((($E$39+273)*Vprim/3600+$T$30*Vprim/3600*($E$31+273)+H49/(1176,56+1,00692))/($T$30*Vprim/3600+Vprim/3600))-273
A20: Baugröße 500 | J20: 2 Leiter | L20: 4 Leiter | P20: Umrechnung | R20: Umrechnung | AD20: =VLOOKUP("Düsenbelegung (Kunstoffdüsen)",'Legende - Legend'!$B$5:$E$64,IF(Sprache="Deutsch",1,IF(Sprache="English",2,IF(Sprache="Francais",3,IF(Sprache="Italiano",4,IF(Sprache="Portugues",5,6))))),FALSE) -> Düsenbelegung (Kunstoffdüsen) | AF20: =VLOOKUP("Baugröße 500",'Legende - Legend'!$B$5:$E$64,IF(Sprache="Deutsch",1,IF(Sprache="English",2,IF(Sprache="Francais",3,IF(Sprache="Italiano",4,IF(Sprache="Portugues",5,6))))),FALSE) -> Baugröße 500 | AV20: Baugröße 1000 | AW20: Tausblass = (Tprim*Vprim+I*Vprim*Tansaug+Qsek(CPl*dichte)/(I*Vprim+Vprim) | BD20: 2-Leiter | BF20: 4-Leiter | BX20: =VLOOKUP("Düsenbelegung (Kunstoffdüsen)",'Legende - Legend'!$B$5:$E$64,IF(Sprache="Deutsch",1,IF(Sprache="English",2,IF(Sprache="Francais",3,IF(Sprache="Italiano",4,IF(Sprache="Portugues",5,6))))),FALSE) -> Düsenbelegung (Kunstoffdüsen) | BZ20: =VLOOKUP("Baugröße 1000",'Legende - Legend'!$B$5:$E$64,IF(Sprache="Deutsch",1,IF(Sprache="English",2,IF(Sprache="Francais",3,IF(Sprache="Italiano",4,IF(Sprache="Portugues",5,6))))),FALSE) -> Baugröße 1000
A21: Materialnummer: | B21: Düsenanzahl 6,2 Aerodyn. Fläche ( 27,79 mm^2) | C21: Düsenanzahl 5,3 Aerodyn. Fläche (19,86 mm^2) | D21: Schallleistung (LwA) [db(A)/Düse 6,2 mm | E21: Schallleistung (LwA) [db(A)/Düse] 5,3 mm | F21: Erhöhung L(W,A) durch hohe Geschwindigkeiten im DN100 Stutzen | G21: Dp [Pa] | H21: Aerodyn. Fläche (in mm^2) | I21: QSK (spezifische Ausgangskühlleistung) [W/K] | J21: QSH (spezifische Ausgangsheizleistung) [W/K] | K21: QSK (spezifische Ausgangskühlleistung) [W/K] | L21: QSH (spezifische Ausgangsheizleistung) [W/K] | M21: Leistungsfaktor aufgrund der Druckerhöhung in Bezug auf 200 PA | N21: Leistungsfaktor aufgrund der Volumenstromerhöhung 40 m^3/h 200 PA | O21: Wassermenge in % (Kühlleistung | P21: Leistungen in % bei verschieden Wassermengen (Kühlleistung) | Q21: Wassermenge in % (Heizleistung) | R21: Leistungen in % bei verschieden Wassermengen Heizleistung | S21: Leistungsänderung der sensiblen Leistung (Qsens) aufgrund des kondensierenden Betriebs F( Taupunkttemperatur- Wasservorlauftemperatur) =Qsens | T21: Vsek (in m^3/h) | U21: Induktionsverhältniss (In Abhägigkeit des Primärdruckes | V21: Luftgeschwindigkeit am Wärmetauscher m/S | W21: Leistungsänderung von Qtotal (Faktor 1) Bezogen auf ( delta T (Taupunkt - Wasservorlauf) | X21: Leistungsänderung von Qtotal (Faktor 2) Bezogen auf die Strömungsgeschwindikeit (Qtotal wird nur bei geringen Strömungsgeschwindigkeiten erhöht) | Y21: Leistungsänderung Qtotal | Z21: QSK (Gewählt) (spezifische Ausgangskühlleistung) [W/K] | AA21: QSH (Gewählt) (spezifische Ausgangsheizleistung) [W/K] | AB21: Filter Faktor (ohne Filter sind 5 % mehr Leistung möglich) | AD21: DD | AE21: BB | AF21: DV | AH21: LWA [dB(A)] | AI21: Dp [Pa] | AJ21: QPK [W] | AK21: =IF(AK10<AK11,"Qsk- sens [W]","Qsk [W]") -> Qsk [W] | AL21: =IF($AK$10<$AK$11,"Qsktot [W]","Qsk [W]") -> Qsk [W] | AM21: QPH [W] | AN21: QSH [W] | AO21: QKges [W] | AP21: tKWRL [°C] | AQ21: QHges [W] | AR21: tWWRL [°C] | AS21: tzuK [°C] | AT21: tzuH [°C] | AV21: Materialnummer: | AW21: Düsenanzahl 6,2 Aerodyn. Fläche ( 27,79 mm^2) | AX21: Düsenanzahl 5,3 Aerodyn. Fläche (19,86 mm^2) | AY21: Schallleistung (LwA) [db(A)/Düse 6,2 mm | AZ21: Schallleistung (LwA) [db(A)/Düse] 5,3 mm | BA21: Erhöhung L(W,A) durch hohe Geschwindigkeiten im DN100 Stutzen | BB21: Dp [Pa] | BC21: Aerodyn. Fläche (in mm^2) | BD21: QSK (spezifische Ausgangskühlleistung) [W/K] | BE21: QSH (spezifische Ausgangsheizleistung) [W/K] | BF21: QSK (spezifische Ausgangskühlleistung) [W/K] | BG21: QSH (spezifische Ausgangsheizleistung) [W/K] | BH21: Leistungsfaktor aufgrund der Druckerhöhung in Bezug auf 200 PA | BI21: Leistungsfaktor aufgrund der Volumenstromerhöhung 80 m^3/h 200 PA | BJ21: Wassermenge in % (Kühlleistung | BK21: Leistungen in % bei verschieden Wassermengen (Kühlleistung) | BL21: Wassermenge in % (Heizleistung) | BM21: Leistungen in % bei verschieden Wassermengen Heizleistung | BN21: Leistungsänderung der sensiblen Leistung (Qsens) aufgrund der kondensierenden Betriebs F( Taupunkttemperatur- Wasservorlauftemperatur) =Qsens | BO21: Vsek (in m^3/h) | BP21: Induktionsverhältniss (In Abhägigkeit des Primärdruckes | BQ21: Luftgeschwindigkeit am Wärmetauscher m/S | BR21: Leistungsänderung von Qtotal (Faktor 1) Bezogen auf ( delta T (Taupunkt - Wasservorlauf) | BS21: Leistungsänderung von Qtotal (Faktor 2) Bezogen auf die Strömungsgeschwindikeit (Qtotal wird nur bei geringen Strömungsgeschwindigkeiten erhöht) | BT21: Leistungsänderung Qtotal | BU21: QSK (Gewählt) (spezifische Ausgangskühlleistung) [W/K] | BV21: QSH (Gewählt) (spezifische Ausgangsheizleistung) [W/K] | BW21: Filterfaktor | BX21: DD | BY21: BB | BZ21: DV | CB21: LWA [dB(A)] | CC21: Dp [Pa] | CD21: QPK [W] | CE21: =IF(AK10<AK11,"Qsk- sens [W]","Qsk [W]") -> Qsk [W] | CF21: =IF($AK$10<$AK$11,"Qsktot [W]","Qsk [W]") -> Qsk [W] | CG21: QPH [W] | CH21: QSH [W] | CI21: QKges [W] | CJ21: tKWRL [°C] | CK21: QHges [W] | CL21: tWWRL [°C] | CM21: tzuK [°C] | CN21: tzuH [°C]
A22: 1051586 | B22: 0 | C22: 19 | D22: =0.043*G22+3.679 -> 68.87526036 | E22: =0.0528*G22+3.309 -> 83.36394295 | F22: =IF(Primärvolumenstrom>70,5.7611*LN(Primärvolumenstrom)-23.047,"0") -> 0 | G22: =(Primärvolumenstrom^2)/((0.00456*H22))^2 -> 1516.192101 | H22: =B22*27.79+C22*19.86 -> 377.34 | I22: 33 | J22: 33 | K22: 25 | L22: 22 | M22: =0.7993*EXP(0.001092*G22) -> 4.185653482 | N22: =0.37762609*LN(Primärvolumenstrom)- 0.39771382 -> 1.190087814 | O22: =$AK28/$AG28*100 -> 100 | P22: =IF($O$22=100,100,IF(WT="4L",31.432*LN($O$22)-45.157,21.402*LN($O$22)-0.5837)) -> 100 | Q22: =$AK29/$AG29*100 -> 100 | R22: =IF($Q$22=100,100,IF(WT="4L",31.498*LN($Q$22)-45.397,25.624*LN($Q$22)-19.482)) -> 100 | S22: =IF($AK$10<$AK$11,-0.0125*($AK$11-$AK$10)+1,1) -> 1 | T22: =Primärvolumenstrom*U22 -> 841.4567894 | U22: =0.0055*G22+4.22 -> 12.55905656 | V22: =T22/(0.25*0.5)/3600 -> 1.869903976 | W22: =IF($AK$10<$AK$11,0.0189*($AK$11-$AK$10)+1,1) -> 1 | X22: =IF($AK$10<$AK$11,-0.3822*(V22)+1.1147,1) -> 1 | Y22: =IF(W22*X22<1,1,W22*X22) -> 1 | Z22: =IF(WT="2L",I22,K22) -> 25 | AA22: 22 | AB22: =IF(Filter="MF",1,1.05) -> 1.05 | AE22: 17 | AF22: XS | AH22: =IF(AI22<>"-",10*LOG10(B22*10^(E22/10)+C22*10^(D22/10))+F22,"-") -> - | AI22: =IF(AND(G22<350,G22>100),G22,"-") -> - | AJ22: =IF(AI22<>"-",Primärvolumenstrom*0.335*($AK$7-$AK$8),"-") -> - | AK22: =IF(AI22<>"-",Z22*($AK$7-$AK$10)*(P22/100)*M22*N22*S22*AB22,"-") -> - | AL22: =IF(AI22<>"-",Z22*($AK$7-$AK$10)*(P22/100)*M22*N22*AB22*Y22,"-") -> - | AM22: =IF(AI22<>"-",Primärvolumenstrom*0.335*($AR$8-$AR$7),"-") -> - | AN22: =IF(AI22<>"-",AA22*($AR$10-$AR$7)*(R22/100)*M22*N22*AB22,"-") -> - | AO22: =IF(AI22<>"-",AJ22+AL22,"-") -> - | AP22: =IF(AK22<>"-",IF($AK$10<$AK$11,$AK$10+(AL22/(4.2*AK$28/3.6)),$AK$10+(AK22/(4.2*AK$28/3.6))),"-") -> - | AQ22: =IF(AI22<>"-",AM22+AN22,"-") -> - | AR22: =IF(AI22<>"-",$AR$10-((AN22/(4.2*AK$29/3.6))),"-") -> - | AS22: =IF(AK22<>"-",((T_PRIM+273)*Primärvolumenstrom/3600+U22*Primärvolumenstrom/3600*(T_ANSAUG+273)-AK22/(1176.56*1.00692))/(U22*Primärvolumenstrom/3600+Primärvolumenstrom/3600)-273,"-") -> - | AT22: =IF(AN22<>"-",((T_Prim_H+273)*Primärvolumenstrom/3600+U22*Primärvolumenstrom/3600*(T_Ansaug_H+273)+AN22/(1176.56*1.00692))/(U22*Primärvolumenstrom/3600+Primärvolumenstrom/3600)-273,"-") -> - | AV22: 1051650 | AW22: 0 | AX22: 41 | AY22: =0.043*CC22+3.679 -> 17.68010053 | AZ22: =0.047*CC22+2.2 -> 17.50352849 | BA22: =IF(Primärvolumenstrom>70,5.7611*LN(Primärvolumenstrom)-23.047,"0") -> 0 | BB22: =(Primärvolumenstrom^2)/((0.00456*BC22))^2 -> 325.6069891 | BC22: =AW22*27.79+AX22*19.86 -> 814.26 | BD22: 66 | BE22: 66 | BF22: 55 | BG22: 46 | BH22: =0.833169*EXP(0.00087*BB22) -> 1.106010398 | BI22: =0.421882*LN(Primärvolumenstrom)- 0.85088 -> 0.9230041317 | BJ22: =$CF28/$CA28*100 -> 100 | BK22: =IF($BJ$22=100,100,IF(WT="4L",31.432*LN($BJ$22)-45.157,21.402*LN($BJ$22)-0.5837)) -> 100 | BL22: =$CF29/$CA29*100 -> 100 | BM22: =IF($BL$22=100,100,IF(WT="4L",31.498*LN($BL$22)-45.397,25.424*LN($BL$22)-19.482)) -> 100 | BN22: =IF($AK$10<$AK$11,-0.0125*($AK$11-$AK$10)+1,1) -> 1 | BO22: =Primärvolumenstrom*BP22 -> 402.7261755 | BP22: =0.0055*BB22+4.22 -> 6.01083844 | BQ22: =BO22/(0.25*0.97)/3600 -> 0.4613129158 | BR22: =IF($AK$10<$AK$11,0.0189*($AK$11-$AK$10)+1,1) -> 1 | BS22: =IF($AK$10<$AK$11,-0.3822*(BQ22)+1.1147,1) -> 1 | BT22: =IF(BR22*BS22<1,1,BR22*BS22) -> 1 | BU22: =IF(WT="2L",BD22,BF22) -> 55 | BV22: 46 | BW22: =IF(Filter="MF",1,1.05) -> 1.05 | BY22: 37 | BZ22: XS | CB22: =IF(CC22<>"-",10*LOG10(AW22*10^(AY22/10)+AX22*10^(AZ22/10))+BA22,"-") -> 33.63136705 | CC22: =IF(AND(BB22<350,BB22>100),BB22,"-") -> 325.6069891 | CD22: =IF(CC22<>"-",Primärvolumenstrom*0.335*($AK$7-$AK$8),"-") -> 224.45 | CE22: =IF(CC22<>"-",BU22*($AK$7-$AK$10)*(BK22/100)*BH22*BI22*BN22*BW22,"-") -> 589.5421263 | CF22: =IF(CC22<>"-",BU22*($AK$7-$AK$10)*(BK22/100)*BH22*BI22*BT22*BW22,"-") -> 589.5421263 | CG22: =IF(CC22<>"-",Primärvolumenstrom*0.335*($AR$8-$AR$7),"-") -> -89.78 | CH22: =IF(CC22<>"-",BV22*($AR$10-$AR$7)*(BM22/100)*BH22*BI22*BW22,"-") -> 493.0715965 | CI22: =IF(CC22<>"-",CD22+CF22,"-") -> 813.9921263 | CJ22: =IF(CE22<>"-",IF($AK$10<$AK$11,$AK$10+(CF22/(4.2*CF$28/3.6)),$AK$10+(CE22/(4.2*CF$28/3.6))),"-") -> 19.36881215 | CK22: =IF(CC22<>"-",CG22+CH22,"-") -> 403.2915965 | CL22: =IF(CC22<>"-",$AR$10-((CH22/(4.2*CF$29/3.6))),"-") -> 29.18244802 | CM22: =IF(CE22<>"-",((T_PRIM+273)*Primärvolumenstrom/3600+BP22*Primärvolumenstrom/3600*(T_ANSAUG+273)-CE22/(1176.56*1.00692))/(BP22*Primärvolumenstrom/3600+Primärvolumenstrom/3600)-273,"-") -> 20.75978771 | CN22: =IF(CH22<>"-",((T_Prim_H+273)*Primärvolumenstrom/3600+BP22*Primärvolumenstrom/3600*(T_Ansaug_H+273)+CH22/(1176.56*1.00692))/(BP22*Primärvolumenstrom/3600+Primärvolumenstrom/3600)-273,"-") -> 24.61921975
A23: 1051578 | B23: 0 | C23: 24 | D23: =0.043*G23+3.679 -> 44.53985068 | E23: =0.0528*G23+3.309 -> 53.48232362 | F23: =IF(Primärvolumenstrom>70,5.7611*LN(Primärvolumenstrom)-23.047,"0") -> 0 | G23: =(Primärvolumenstrom^2)/((0.00456*H23))^2 -> 950.2523413 | H23: =B23*27.79+C23*19.86 -> 476.64 | I23: 33 | J23: 33 | K23: 26 | L23: 22 | M23: =0.7993*EXP(0.001092*G23) -> 2.256142784 | N23: =0.37762609*LN(Primärvolumenstrom)- 0.39771382 -> 1.190087814 | P23: =IF($O$22=100,100,IF(WT="4L",31.432*LN($O$22)-45.157,21.402*LN($O$22)-0.5837)) -> 100 | R23: =IF($Q$22=100,100,IF(WT="4L",31.498*LN($Q$22)-45.397,25.624*LN($Q$22)-19.482)) -> 100 | S23: =IF($AK$10<$AK$11,-0.0125*($AK$11-$AK$10)+1,1) -> 1 | T23: =Primärvolumenstrom*U23 -> 632.9079878 | U23: =0.0055*G23+4.22 -> 9.446387877 | V23: =T23/(0.25*0.5)/3600 -> 1.406462195 | W23: =IF($AK$10<$AK$11,0.0189*($AK$11-$AK$10)+1,1) -> 1 | X23: =IF($AK$10<$AK$11,-0.3822*(V23)+1.1147,1) -> 1 | Y23: 1 | Z23: 26 | AA23: 22 | AB23: =IF(Filter="MF",1,1.05) -> 1.05 | AE23: 21 | AF23: S | AH23: =IF(AI23<>"-",10*LOG10(B23*10^(E23/10)+C23*10^(D23/10))+F23,"-") -> - | AI23: =IF(AND(G23<350,G23>100),G23,"-") -> - | AJ23: =IF(AI23<>"-",Primärvolumenstrom*0.335*($AK$7-$AK$8),"-") -> - | AK23: =IF(AI23<>"-",Z23*($AK$7-$AK$10)*(P23/100)*M23*N23*S23*AB23,"-") -> - | AL23: - | AM23: =IF(AI23<>"-",Primärvolumenstrom*0.335*($AR$8-$AR$7),"-") -> - | AN23: =IF(AI23<>"-",AA23*($AR$10-$AR$7)*(R23/100)*M23*N23*AB23,"-") -> - | AO23: =IF(AI23<>"-",AJ23+AL23,"-") -> - | AP23: =IF(AK23<>"-",IF($AK$10<$AK$11,$AK$10+(AL23/(4.2*AK$28/3.6)),$AK$10+(AK23/(4.2*AK$28/3.6))),"-") -> - | AQ23: =IF(AI23<>"-",AM23+AN23,"-") -> - | AR23: =IF(AI23<>"-",$AR$10-((AN23/(4.2*AK$29/3.6))),"-") -> - | AS23: =IF(AK23<>"-",((T_PRIM+273)*Primärvolumenstrom/3600+U23*Primärvolumenstrom/3600*(T_ANSAUG+273)-AK23/(1176.56*1.00692))/(U23*Primärvolumenstrom/3600+Primärvolumenstrom/3600)-273,"-") -> - | AT23: =IF(AN23<>"-",((T_Prim_H+273)*Primärvolumenstrom/3600+U23*Primärvolumenstrom/3600*(T_Ansaug_H+273)+AN23/(1176.56*1.00692))/(U23*Primärvolumenstrom/3600+Primärvolumenstrom/3600)-273,"-") -> - | AV23: 1051647 | AX23: 45 | AY23: =0.043*CC23+3.679 -> 15.30164197 | AZ23: 14.90381797 | BA23: =IF(Primärvolumenstrom>70,5.7611*LN(Primärvolumenstrom)-23.047,"0") -> 0 | BB23: =(Primärvolumenstrom^2)/((0.00456*BC23))^2 -> 270.2939993 | BC23: =AW23*27.79+AX23*19.86 -> 893.7 | BD23: 66 | BE23: 66 | BF23: 55 | BG23: 46 | BH23: =0.833169*EXP(0.00087*BB23) -> 1.05404696 | BI23: =0.421882*LN(Primärvolumenstrom)- 0.85088 -> 0.9230041317 | BK23: =IF($BJ$22=100,100,IF(WT="4L",31.432*LN($BJ$22)-45.157,21.402*LN($BJ$22)-0.5837)) -> 100 | BM23: =IF($BL$22=100,100,IF(WT="4L",31.498*LN($BL$22)-45.397,25.424*LN($BL$22)-19.482)) -> 100 | BN23: =IF($AK$10<$AK$11,-0.0125*($AK$11-$AK$10)+1,1) -> 1 | BO23: =Primärvolumenstrom*BP23 -> 382.3433387 | BP23: =0.0055*BB23+4.22 -> 5.706616996 | BQ23: =BO23/(0.25*0.97)/3600 -> 0.4379648783 | BR23: =IF($AK$10<$AK$11,0.0189*($AK$11-$AK$10)+1,1) -> 1 | BS23: =IF($AK$10<$AK$11,-0.3822*(BQ23)+1.1147,1) -> 1 | BT23: =IF(BR23*BS23<1,1,BR23*BS23) -> 1 | BU23: 55 | BV23: 46 | BW23: =IF(Filter="MF",1,1.05) -> 1.05 | BY23: 40 | BZ23: S | CB23: =IF(CC23<>"-",10*LOG10(AW23*10^(AY23/10)+AX23*10^(AZ23/10))+BA23,"-") -> 31.43594311 | CC23: =IF(AND(BB23<350,BB23>100),BB23,"-") -> 270.2939993 | CD23: =IF(CC23<>"-",Primärvolumenstrom*0.335*($AK$7-$AK$8),"-") -> 224.45 | CE23: =IF(CC23<>"-",BU23*($AK$7-$AK$10)*(BK23/100)*BH23*BI23*BN23*BW23,"-") -> 561.8438012 | CF23: =IF(CC23<>"-",BU23*($AK$7-$AK$10)*(BK23/100)*BH23*BI23*BT23*BW23,"-") -> 561.8438012 | CG23: =IF(CC23<>"-",Primärvolumenstrom*0.335*($AR$8-$AR$7),"-") -> -89.78 | CH23: =IF(CC23<>"-",BV23*($AR$10-$AR$7)*(BM23/100)*BH23*BI23*BW23,"-") -> 469.9057246 | CI23: =IF(CC23<>"-",CD23+CF23,"-") -> 786.2938012 | CJ23: =IF(CE23<>"-",IF($AK$10<$AK$11,$AK$10+(CF23/(4.2*CF$28/3.6)),$AK$10+(CE23/(4.2*CF$28/3.6))),"-") -> 19.21053601 | CK23: =IF(CC23<>"-",CG23+CH23,"-") -> 380.1257246 | CL23: =IF(CC23<>"-",$AR$10-((CH23/(4.2*CF$29/3.6))),"-") -> 29.31482443 | CM23: =IF(CE23<>"-",((T_PRIM+273)*Primärvolumenstrom/3600+BP23*Primärvolumenstrom/3600*(T_ANSAUG+273)-CE23/(1176.56*1.00692))/(BP23*Primärvolumenstrom/3600+Primärvolumenstrom/3600)-273,"-") -> 20.70939774 | CN23: =IF(CH23<>"-",((T_Prim_H+273)*Primärvolumenstrom/3600+BP23*Primärvolumenstrom/3600*(T_Ansaug_H+273)+CH23/(1176.56*1.00692))/(BP23*Primärvolumenstrom/3600+Primärvolumenstrom/3600)-273,"-") -> 24.58136915
A24: 1051584 | B24: 0 | C24: 28 | D24: =0.043*G24+3.679 -> 33.69921682 | E24: =0.0528*G24+3.309 -> 40.17103368 | F24: =IF(Primärvolumenstrom>70,5.7611*LN(Primärvolumenstrom)-23.047,"0") -> 0 | G24: =(Primärvolumenstrom^2)/((0.00456*H24))^2 -> 698.1445773 | H24: =B24*27.79+C24*19.86 -> 556.08 | I24: 33 | J24: 33 | K24: 26 | L24: 22 | M24: =0.7993*EXP(0.001092*G24) -> 1.713186256 | N24: =0.37762609*LN(Primärvolumenstrom)- 0.39771382 -> 1.190087814 | P24: =IF($O$22=100,100,IF(WT="4L",31.432*LN($O$22)-45.157,21.402*LN($O$22)-0.5837)) -> 100 | R24: =IF($Q$22=100,100,IF(WT="4L",31.498*LN($Q$22)-45.397,25.624*LN($Q$22)-19.482)) -> 100 | S24: =IF($AK$10<$AK$11,-0.0125*($AK$11-$AK$10)+1,1) -> 1 | T24: =Primärvolumenstrom*U24 -> 540.0062767 | U24: =0.0055*G24+4.22 -> 8.059795175 | V24: =T24/(0.25*0.5)/3600 -> 1.200013948 | W24: =IF($AK$10<$AK$11,0.0189*($AK$11-$AK$10)+1,1) -> 1 | X24: =IF($AK$10<$AK$11,-0.3822*(V24)+1.1147,1) -> 1 | Y24: 1 | Z24: 26 | AA24: 22 | AB24: =IF(Filter="MF",1,1.05) -> 1.05 | AD24: 3 | AE24: 21 | AF24: M | AH24: =IF(AI24<>"-",10*LOG10(B24*10^(E24/10)+C24*10^(D24/10))+F24,"-") -> - | AI24: =IF(AND(G24<350,G24>100),G24,"-") -> - | AJ24: =IF(AI24<>"-",Primärvolumenstrom*0.335*($AK$7-$AK$8),"-") -> - | AK24: =IF(AI24<>"-",Z24*($AK$7-$AK$10)*(P24/100)*M24*N24*S24*AB24,"-") -> - | AL24: =IF(AI24<>"-",Z24*($AK$7-$AK$10)*(P24/100)*M24*N24*AB24*Y24,"-") -> - | AM24: =IF(AI24<>"-",Primärvolumenstrom*0.335*($AR$8-$AR$7),"-") -> - | AN24: - | AO24: =IF(AI24<>"-",AJ24+AL24,"-") -> - | AP24: =IF(AK24<>"-",IF($AK$10<$AK$11,$AK$10+(AL24/(4.2*AK$28/3.6)),$AK$10+(AK24/(4.2*AK$28/3.6))),"-") -> - | AQ24: =IF(AI24<>"-",AM24+AN24,"-") -> - | AR24: =IF(AI24<>"-",$AR$10-((AN24/(4.2*AK$29/3.6))),"-") -> - | AS24: =IF(AK24<>"-",((T_PRIM+273)*Primärvolumenstrom/3600+U24*Primärvolumenstrom/3600*(T_ANSAUG+273)-AK24/(1176.56*1.00692))/(U24*Primärvolumenstrom/3600+Primärvolumenstrom/3600)-273,"-") -> - | AT24: =IF(AN24<>"-",((T_Prim_H+273)*Primärvolumenstrom/3600+U24*Primärvolumenstrom/3600*(T_Ansaug_H+273)+AN24/(1176.56*1.00692))/(U24*Primärvolumenstrom/3600+Primärvolumenstrom/3600)-273,"-") -> - | AV24: 1051648 | AX24: 56 | AY24: =0.043*CC24+3.679 -> 11.18405421 | AZ24: =0.047*CC24+2.2 -> 10.40319878 | BA24: =IF(Primärvolumenstrom>70,5.7611*LN(Primärvolumenstrom)-23.047,"0") -> 0 | BB24: =(Primärvolumenstrom^2)/((0.00456*BC24))^2 -> 174.5361443 | BC24: =AW24*27.79+AX24*19.86 -> 1112.16 | BD24: 66 | BE24: 66 | BF24: 55 | BG24: 46 | BH24: =0.833169*EXP(0.00087*BB24) -> 0.9697932925 | BI24: =0.421882*LN(Primärvolumenstrom)- 0.85088 -> 0.9230041317 | BK24: =IF($BJ$22=100,100,IF(WT="4L",31.432*LN($BJ$22)-45.157,21.402*LN($BJ$22)-0.5837)) -> 100 | BM24: =IF($BL$22=100,100,IF(WT="4L",31.498*LN($BL$22)-45.397,25.424*LN($BL$22)-19.482)) -> 100 | BN24: =IF($AK$10<$AK$11,-0.0125*($AK$11-$AK$10)+1,1) -> 1 | BO24: =Primärvolumenstrom*BP24 -> 347.0565692 | BP24: =0.0055*BB24+4.22 -> 5.179948794 | BQ24: =BO24/(0.25*0.97)/3600 -> 0.3975447528 | BR24: =IF($AK$10<$AK$11,0.0189*($AK$11-$AK$10)+1,1) -> 1 | BS24: =IF($AK$10<$AK$11,-0.3822*(BQ24)+1.1147,1) -> 1 | BT24: 1 | BU24: 55 | BV24: 46 | BW24: =IF(Filter="MF",1,1.05) -> 1.05 | BY24: 43 | BZ24: M | CB24: 27.88507905 | CC24: =IF(AND(BB24<350,BB24>100),BB24,"-") -> 174.5361443 | CD24: =IF(CC24<>"-",Primärvolumenstrom*0.335*($AK$7-$AK$8),"-") -> 224.45 | CE24: =IF(CC24<>"-",BU24*($AK$7-$AK$10)*(BK24/100)*BH24*BI24*BN24*BW24,"-") -> 516.9336572 | CF24: =IF(CC24<>"-",BU24*($AK$7-$AK$10)*(BK24/100)*BH24*BI24*BT24*BW24,"-") -> 516.9336572 | CG24: =IF(CC24<>"-",Primärvolumenstrom*0.335*($AR$8-$AR$7),"-") -> -89.78 | CH24: 432.3445133 | CI24: =IF(CC24<>"-",CD24+CF24,"-") -> 741.3836572 | CJ24: =IF(CE24<>"-",IF($AK$10<$AK$11,$AK$10+(CF24/(4.2*CF$28/3.6)),$AK$10+(CE24/(4.2*CF$28/3.6))),"-") -> 18.95390661 | CK24: =IF(CC24<>"-",CG24+CH24,"-") -> 342.5645133 | CL24: =IF(CC24<>"-",$AR$10-((CH24/(4.2*CF$29/3.6))),"-") -> 29.52945992 | CM24: =IF(CE24<>"-",((T_PRIM+273)*Primärvolumenstrom/3600+BP24*Primärvolumenstrom/3600*(T_ANSAUG+273)-CE24/(1176.56*1.00692))/(BP24*Primärvolumenstrom/3600+Primärvolumenstrom/3600)-273,"-") -> 20.5881147 | CN24: =IF(CH24<>"-",((T_Prim_H+273)*Primärvolumenstrom/3600+BP24*Primärvolumenstrom/3600*(T_Ansaug_H+273)+CH24/(1176.56*1.00692))/(BP24*Primärvolumenstrom/3600+Primärvolumenstrom/3600)-273,"-") -> 24.52569909
A25: 1051588 | B25: 10 | C25: 18 | D25: =0.043*G25+3.679 -> 26.67335834 | E25: =0.0528*G25+3.309 -> 31.54393303 | F25: =IF(Primärvolumenstrom>70,5.7611*LN(Primärvolumenstrom)-23.047,"0") -> 0 | G25: =(Primärvolumenstrom^2)/((0.00456*H25))^2 -> 534.7525195 | H25: =B25*27.79+C25*19.86 -> 635.38 | I25: 33 | J25: 33 | K25: 27 | L25: 23 | M25: =0.7993*EXP(0.001092*G25) -> 1.433230256 | N25: =0.37762609*LN(Primärvolumenstrom)- 0.39771382 -> 1.190087814 | P25: =IF($O$22=100,100,IF(WT="4L",31.432*LN($O$22)-45.157,21.402*LN($O$22)-0.5837)) -> 100 | R25: =IF($Q$22=100,100,IF(WT="4L",31.498*LN($Q$22)-45.397,25.624*LN($Q$22)-19.482)) -> 100 | S25: =IF($AK$10<$AK$11,-0.0125*($AK$11-$AK$10)+1,1) -> 1 | T25: =Primärvolumenstrom*U25 -> 479.7963034 | U25: =0.0055*G25+4.22 -> 7.161138857 | V25: =T25/(0.25*0.5)/3600 -> 1.066214008 | W25: =IF($AK$10<$AK$11,0.0189*($AK$11-$AK$10)+1,1) -> 1 | X25: =IF($AK$10<$AK$11,-0.3822*(V25)+1.1147,1) -> 1 | Y25: 1 | Z25: 27 | AA25: 23 | AB25: =IF(Filter="MF",1,1.05) -> 1.05 | AD25: 11 | AE25: 13 | AF25: L | AH25: =IF(AI25<>"-",10*LOG10(B25*10^(E25/10)+C25*10^(D25/10))+F25,"-") -> - | AI25: =IF(AND(G25<350,G25>100),G25,"-") -> - | AJ25: =IF(AI25<>"-",Primärvolumenstrom*0.335*($AK$7-$AK$8),"-") -> - | AK25: =IF(AI25<>"-",Z25*($AK$7-$AK$10)*(P25/100)*M25*N25*S25*AB25,"-") -> - | AL25: =IF(AI25<>"-",Z25*($AK$7-$AK$10)*(P25/100)*M25*N25*AB25*Y25,"-") -> - | AM25: =IF(AI25<>"-",Primärvolumenstrom*0.335*($AR$8-$AR$7),"-") -> - | AN25: - | AO25: =IF(AI25<>"-",AJ25+AL25,"-") -> - | AP25: =IF(AK25<>"-",IF($AK$10<$AK$11,$AK$10+(AL25/(4.2*AK$28/3.6)),$AK$10+(AK25/(4.2*AK$28/3.6))),"-") -> - | AQ25: =IF(AI25<>"-",AM25+AN25,"-") -> - | AR25: =IF(AI25<>"-",$AR$10-((AN25/(4.2*AK$29/3.6))),"-") -> - | AS25: =IF(AK25<>"-",((T_PRIM+273)*Primärvolumenstrom/3600+U25*Primärvolumenstrom/3600*(T_ANSAUG+273)-AK25/(1176.56*1.00692))/(U25*Primärvolumenstrom/3600+Primärvolumenstrom/3600)-273,"-") -> - | AT25: =IF(AN25<>"-",((T_Prim_H+273)*Primärvolumenstrom/3600+U25*Primärvolumenstrom/3600*(T_Ansaug_H+273)+AN25/(1176.56*1.00692))/(U25*Primärvolumenstrom/3600+Primärvolumenstrom/3600)-273,"-") -> - | AV25: 1051649 | AW25: 21 | AX25: 35 | AY25: =0.043*CC25+3.679 -> 9.356509088 | AZ25: 8.405649468 | BA25: =IF(Primärvolumenstrom>70,5.7611*LN(Primärvolumenstrom)-23.047,"0") -> 0 | BB25: =(Primärvolumenstrom^2)/((0.00456*BC25))^2 -> 132.0350951 | BC25: =AW25*27.79+AX25*19.86 -> 1278.69 | BD25: 66 | BE25: 66 | BF25: 56 | BG25: 46 | BH25: =0.833169*EXP(0.00087*BB25) -> 0.9345891636 | BI25: =0.421882*LN(Primärvolumenstrom)- 0.85088 -> 0.9230041317 | BK25: =IF($BJ$22=100,100,IF(WT="4L",31.432*LN($BJ$22)-45.157,21.402*LN($BJ$22)-0.5837)) -> 100 | BM25: =IF($BL$22=100,100,IF(WT="4L",31.498*LN($BL$22)-45.397,25.424*LN($BL$22)-19.482)) -> 100 | BN25: =IF($AK$10<$AK$11,-0.0125*($AK$11-$AK$10)+1,1) -> 1 | BO25: =Primärvolumenstrom*BP25 -> 331.3949325 | BP25: =0.0055*BB25+4.22 -> 4.946193023 | BQ25: =BO25/(0.25*0.97)/3600 -> 0.3796047337 | BR25: =IF($AK$10<$AK$11,0.0189*($AK$11-$AK$10)+1,1) -> 1 | BS25: =IF($AK$10<$AK$11,-0.3822*(BQ25)+1.1147,1) -> 1 | BT25: 1 | BU25: 56 | BV25: 46 | BW25: =IF(Filter="MF",1,1.05) -> 1.05 | BX25: 22 | BY25: 26 | BZ25: L | CB25: 26.26890242 | CC25: =IF(AND(BB25<350,BB25>100),BB25,"-") -> 132.0350951 | CD25: =IF(CC25<>"-",Primärvolumenstrom*0.335*($AK$7-$AK$8),"-") -> 224.45 | CE25: =IF(CC25<>"-",BU25*($AK$7-$AK$10)*(BK25/100)*BH25*BI25*BN25*BW25,"-") -> 507.2262397 | CF25: 507.2262397 | CG25: =IF(CC25<>"-",Primärvolumenstrom*0.335*($AR$8-$AR$7),"-") -> -89.78 | CH25: 416.6501255 | CI25: =IF(CC25<>"-",CD25+CF25,"-") -> 731.6762397 | CJ25: =IF(CE25<>"-",IF($AK$10<$AK$11,$AK$10+(CF25/(4.2*CF$28/3.6)),$AK$10+(CE25/(4.2*CF$28/3.6))),"-") -> 18.89843566 | CK25: =IF(CC25<>"-",CG25+CH25,"-") -> 326.8701255 | CL25: =IF(CC25<>"-",$AR$10-((CH25/(4.2*CF$29/3.6))),"-") -> 29.61914214 | CM25: =IF(CE25<>"-",((T_PRIM+273)*Primärvolumenstrom/3600+BP25*Primärvolumenstrom/3600*(T_ANSAUG+273)-CE25/(1176.56*1.00692))/(BP25*Primärvolumenstrom/3600+Primärvolumenstrom/3600)-273,"-") -> 20.44940643 | CN25: =IF(CH25<>"-",((T_Prim_H+273)*Primärvolumenstrom/3600+BP25*Primärvolumenstrom/3600*(T_Ansaug_H+273)+CH25/(1176.56*1.00692))/(BP25*Primärvolumenstrom/3600+Primärvolumenstrom/3600)-273,"-") -> 24.50528072
A26: 1051581 | B26: 28 | C26: 0 | D26: =0.043*G26+3.679 -> 19.01087322 | E26: =0.0528*G26+3.309 -> 22.13511409 | F26: =IF(Primärvolumenstrom>70,5.7611*LN(Primärvolumenstrom)-23.047,"0") -> 0 | G26: =(Primärvolumenstrom^2)/((0.00456*H26))^2 -> 356.5551912 | H26: =B26*27.79+C26*19.86 -> 778.12 | I26: 33 | J26: 33 | K26: 26.5 | L26: 22 | M26: =0.7993*EXP(0.001092*G26) -> 1.179793395 | N26: =0.37762609*LN(Primärvolumenstrom)- 0.39771382 -> 1.190087814 | P26: =IF($O$22=100,100,IF(WT="4L",31.432*LN($O$22)-45.157,21.402*LN($O$22)-0.5837)) -> 100 | R26: =IF($Q$22=100,100,IF(WT="4L",31.498*LN($Q$22)-45.397,25.624*LN($Q$22)-19.482)) -> 100 | S26: =IF($AK$10<$AK$11,-0.0125*($AK$11-$AK$10)+1,1) -> 1 | T26: =Primärvolumenstrom*U26 -> 414.1305879 | U26: =0.0055*G26+4.22 -> 6.181053551 | V26: =T26/(0.25*0.5)/3600 -> 0.9202901954 | W26: =IF($AK$10<$AK$11,0.0189*($AK$11-$AK$10)+1,1) -> 1 | X26: =IF($AK$10<$AK$11,-0.3822*(V26)+1.1147,1) -> 1 | Y26: 1 | Z26: 26.5 | AA26: 22 | AB26: =IF(Filter="MF",1,1.05) -> 1.05 | AD26: 24 | AF26: XL | AH26: =IF(AI26<>"-",10*LOG10(B26*10^(E26/10)+C26*10^(D26/10))+F26,"-") -> - | AI26: =IF(AND(G26<350,G26>100),G26,"-") -> - | AJ26: =IF(AI26<>"-",Primärvolumenstrom*0.335*($AK$7-$AK$8),"-") -> - | AK26: =IF(AI26<>"-",Z26*($AK$7-$AK$10)*(P26/100)*M26*N26*S26*AB26,"-") -> - | AL26: - | AM26: =IF(AI26<>"-",Primärvolumenstrom*0.335*($AR$8-$AR$7),"-") -> - | AN26: - | AO26: =IF(AI26<>"-",AJ26+AL26,"-") -> - | AP26: =IF(AK26<>"-",IF($AK$10<$AK$11,$AK$10+(AL26/(4.2*AK$28/3.6)),$AK$10+(AK26/(4.2*AK$28/3.6))),"-") -> - | AQ26: =IF(AI26<>"-",AM26+AN26,"-") -> - | AR26: =IF(AI26<>"-",$AR$10-((AN26/(4.2*AK$29/3.6))),"-") -> - | AS26: =IF(AK26<>"-",((T_PRIM+273)*Primärvolumenstrom/3600+U26*Primärvolumenstrom/3600*(T_ANSAUG+273)-AK26/(1176.56*1.00692))/(U26*Primärvolumenstrom/3600+Primärvolumenstrom/3600)-273,"-") -> - | AT26: =IF(AN26<>"-",((T_Prim_H+273)*Primärvolumenstrom/3600+U26*Primärvolumenstrom/3600*(T_Ansaug_H+273)+AN26/(1176.56*1.00692))/(U26*Primärvolumenstrom/3600+Primärvolumenstrom/3600)-273,"-") -> - | AV26: 1052856 | AW26: 58 | AX26: 0 | AY26: =0.043*CC26+3.679 ->  | BA26: =IF(Primärvolumenstrom>70,5.7611*LN(Primärvolumenstrom)-23.047,"0") -> 0 | BB26: =(Primärvolumenstrom^2)/((0.00456*BC26))^2 -> 83.09728593 | BC26: =AW26*27.79+AX26*19.86 -> 1611.82 | BD26: 66 | BE26: 66 | BF26: 55 | BG26: 46 | BH26: =0.833169*EXP(0.00087*BB26) -> 0.8956333678 | BI26: =0.421882*LN(Primärvolumenstrom)- 0.85088 -> 0.9230041317 | BK26: =IF($BJ$22=100,100,IF(WT="4L",31.432*LN($BJ$22)-45.157,21.402*LN($BJ$22)-0.5837)) -> 100 | BM26: =IF($BL$22=100,100,IF(WT="4L",31.498*LN($BL$22)-45.397,25.424*LN($BL$22)-19.482)) -> 100 | BN26: =IF($AK$10<$AK$11,-0.0125*($AK$11-$AK$10)+1,1) -> 1 | BO26: =Primärvolumenstrom*BP26 -> 313.3613499 | BP26: =0.0055*BB26+4.22 -> 4.677035073 | BQ26: =BO26/(0.25*0.97)/3600 -> 0.3589477089 | BR26: =IF($AK$10<$AK$11,0.0189*($AK$11-$AK$10)+1,1) -> 1 | BS26: =IF($AK$10<$AK$11,-0.3822*(BQ26)+1.1147,1) -> 1 | BT26: 1 | BU26: 55 | BV26: 46 | BW26: =IF(Filter="MF",1,1.05) -> 1.05 | BX26: 42 | BZ26: XL | CB26: - | CC26: =IF(AND(BB26<350,BB26>100),BB26,"-") -> - | CD26: =IF(CC26<>"-",Primärvolumenstrom*0.335*($AK$7-$AK$8),"-") -> - | CE26: =IF(CC26<>"-",BU26*($AK$7-$AK$10)*(BK26/100)*BH26*BI26*BN26*BW26,"-") -> - | CF26: - | CG26: =IF(CC26<>"-",Primärvolumenstrom*0.335*($AR$8-$AR$7),"-") -> - | CH26: - | CI26: =IF(CC26<>"-",CD26+CF26,"-") -> - | CJ26: =IF(CE26<>"-",IF($AK$10<$AK$11,$AK$10+(CF26/(4.2*CF$28/3.6)),$AK$10+(CE26/(4.2*CF$28/3.6))),"-") -> - | CK26: =IF(CC26<>"-",CG26+CH26,"-") -> - | CL26: =IF(CC26<>"-",$AR$10-((CH26/(4.2*CF$29/3.6))),"-") -> - | CM26: =IF(CE26<>"-",((T_PRIM+273)*Primärvolumenstrom/3600+BP26*Primärvolumenstrom/3600*(T_ANSAUG+273)-CE26/(1176.56*1.00692))/(BP26*Primärvolumenstrom/3600+Primärvolumenstrom/3600)-273,"-") -> - | CN26: =IF(CH26<>"-",((T_Prim_H+273)*Primärvolumenstrom/3600+BP26*Primärvolumenstrom/3600*(T_Ansaug_H+273)+CH26/(1176.56*1.00692))/(BP26*Primärvolumenstrom/3600+Primärvolumenstrom/3600)-273,"-") -> -
W27: =U27/(0.25*0.97)/3600 -> 0 | AF27: =VLOOKUP("Nennwassermenge",'Legende - Legend'!$B$5:$E$64,IF(Sprache="Deutsch",1,IF(Sprache="English",2,IF(Sprache="Francais",3,IF(Sprache="Italiano",4,IF(Sprache="Portugues",5,6))))),FALSE) -> Nennwassermenge | AK27: =VLOOKUP("gewählte Wassermengen bei Dp Wasser:",'Legende - Legend'!$B$5:$E$64,IF(Sprache="Deutsch",1,IF(Sprache="English",2,IF(Sprache="Francais",3,IF(Sprache="Italiano",4,IF(Sprache="Portugues",5,6))))),FALSE) -> gewählte Wassermengen bei Dp Wasser: | BP27: =BN27/(0.25*0.97)/3600 -> 0 | BT27: 1 | BZ27: =VLOOKUP("Nennwassermenge",'Legende - Legend'!$B$5:$E$64,IF(Sprache="Deutsch",1,IF(Sprache="English",2,IF(Sprache="Francais",3,IF(Sprache="Italiano",4,IF(Sprache="Portugues",5,6))))),FALSE) -> Nennwassermenge | CF27: =VLOOKUP("gewählte Wassermengen bei Dp Wasser:",'Legende - Legend'!$B$5:$E$64,IF(Sprache="Deutsch",1,IF(Sprache="English",2,IF(Sprache="Francais",3,IF(Sprache="Italiano",4,IF(Sprache="Portugues",5,6))))),FALSE) -> gewählte Wassermengen bei Dp Wasser:
W28: 0 | AF28: wOK= | AG28: =IF(WT="2L",200,80) -> 80 | AH28: [kg/h] | AK28: 80 | AN28: [kg/h] | AO28: DpK = | AP28: =IF(WT="4L",0.0007*AK28^1.7729,0.0015*AK28^1.7967) -> 1.656098935 | AQ28: [kPa] | BP28: 0 | BZ28: wOK= | CA28: =IF(WT="2L",350,150) -> 150 | CB28: [kg/h] | CF28: 150 | CH28: [kg/h] | CI28: DpK = | CJ28: =IF(WT="4L",0.002*CF28^1.7048,0.0005*CF28^1.8231) -> 10.25251407 | CK28: [kPa]
W29: 0 | AF29: wOH= | AG29: =IF(WT="2L",200,80) -> 80 | AH29: [kg/h] | AK29: 80 | AN29: [kg/h] | AO29: DpH = | AP29: =IF(WT="4L",0.0003*AK29^1.8375,0.0013*AK29^1.8279) -> 0.9419961023 | AQ29: [kPa] | BP29: 0 | BZ29: wOH= | CA29: =IF(WT="2L",350,150) -> 150 | CB29: [kg/h] | CF29: 150 | CH29: [kg/h] | CI29: DpH = | CJ29: =IF(WT="4L",0.0007*CF29^1.8321,0.0004*CF29^1.8512) -> 6.790704552 | CK29: [kPa]
W30: 0 | AF30: QE = | AG30: =IF(WT="2L",419,343) -> 343 | AH30: W | AJ30: =IF(AK28/AG28<0.2,"Kühlwassermenge mind. 20% von Nennwassermenge!",0) -> 0 | BP30: 0 | BZ30: QE = | CA30: =IF(WT="2L",719,585) -> 585 | CB30: W | CD30: =IF(CF28/CA28<0.2,"Kühlwassermenge mind. 20% von Nennwassermenge!",0) -> 0
W31: 0 | AF31: =VLOOKUP("Eigenkonvektion bei Warmwasservorlaufttemperatur 70 °C, Raumlufttemperatur 20 °C und Nennwassermenge",'Legende - Legend'!$B$5:$E$64,IF(Sprache="Deutsch",1,IF(Sprache="English",2,IF(Sprache="Francais",3,IF(Sprache="Italiano",4,IF(Sprache="Portugues",5,6))))),FALSE) -> Eigenkonvektion bei Warmwasservorlaufttemperatur 70 °C, Raumlufttemperatur 20 °C und Nennwassermenge | BP31: 0 | BZ31: =VLOOKUP("Eigenkonvektion bei Warmwasservorlaufttemperatur 70 °C, Raumlufttemperatur 20 °C und Nennwassermenge",'Legende - Legend'!$B$5:$E$64,IF(Sprache="Deutsch",1,IF(Sprache="English",2,IF(Sprache="Francais",3,IF(Sprache="Italiano",4,IF(Sprache="Portugues",5,6))))),FALSE) -> Eigenkonvektion bei Warmwasservorlaufttemperatur 70 °C, Raumlufttemperatur 20 °C und Nennwassermenge
I32: 2 Leiter | K32: 4 Leiter | V32: =T32/(0.25*0.97)/3600 -> 0 | Y32: Leistungsänderung Qtotal | AB32: Filter Faktor ohne Filter sind 5 % mehr Leistung möglich | AD32: =VLOOKUP("Düsenbelegung (Kunstoffdüsen)",'Legende - Legend'!$B$5:$E$64,IF(Sprache="Deutsch",1,IF(Sprache="English",2,IF(Sprache="Francais",3,IF(Sprache="Italiano",4,IF(Sprache="Portugues",5,6))))),FALSE) -> Düsenbelegung (Kunstoffdüsen) | AF32: =VLOOKUP("Baugröße 630",'Legende - Legend'!$B$5:$E$64,IF(Sprache="Deutsch",1,IF(Sprache="English",2,IF(Sprache="Francais",3,IF(Sprache="Italiano",4,IF(Sprache="Portugues",5,6))))),FALSE) -> Baugröße 630 | BP32: 0 | BX32: =VLOOKUP("Düsenbelegung (Kunstoffdüsen)",'Legende - Legend'!$B$5:$E$64,IF(Sprache="Deutsch",1,IF(Sprache="English",2,IF(Sprache="Francais",3,IF(Sprache="Italiano",4,IF(Sprache="Portugues",5,6))))),FALSE) -> Düsenbelegung (Kunstoffdüsen) | BZ32: =VLOOKUP("Baugröße 1250",'Legende - Legend'!$B$5:$E$64,IF(Sprache="Deutsch",1,IF(Sprache="English",2,IF(Sprache="Francais",3,IF(Sprache="Italiano",4,IF(Sprache="Portugues",5,6))))),FALSE) -> Baugröße 1250
A33: Materialnummer: | B33: Düsenanzahl 6,2 Aerodyn. Fläche ( 27,79 mm^2) | C33: Düsenanzahl 5,3 Aerodyn. Fläche (19,86 mm^2) | D33: Schallleistung (LwA) [db(A)/Düse 6,2 mm | E33: Schallleistung (LwA) [db(A)/Düse] 5,3 mm | F33: Erhöhung L(W,A) durch hohe Geschwindigkeiten im DN100 Stutzen | G33: Dp [Pa] | H33: Aerodyn. Fläche (in mm^2) | I33: QSK (spezifische Ausgangskühlleistung) [W/K] | J33: QSH (spezifische Ausgangsheizleistung) [W/K] | K33: QSK (spezifische Ausgangskühlleistung) [W/K] | L33: QSH (spezifische Ausgangsheizleistung) [W/K] | M33: Leistungsfaktor aufgrund der Druckerhöhung in Bezug auf 200 PA | N33: Leistungsfaktor aufgrund der Volumenstromerhöhung 40 m^3/h 200 PA | O33: Wassermenge in % (Kühlleistung | P33: Leistungen in % bei verschieden Wassermengen (Kühlleistung) | Q33: Wassermenge in % (Heizleistung) | R33: Leistungen in % bei verschieden Wassermengen Heizleistung | S33: Leistungsänderung der sensiblen Leistung (Qsens) aufgrund des kondensierenden Betriebs F( Taupunkttemperatur- Wasservorlauftemperatur) =Qsens | T33: Vsek (in m^3/h) | U33: Induktionsverhältniss (In Abhägigkeit des Primärdruckes | V33: Luftgeschwindigkeit am Wärmetauscher m/S | W33: Leistungsänderung von Qtotal (Faktor 1) Bezogen auf ( delta T (Taupunkt - Wasservorlauf) | X33: Leistungsänderung von Qtotal (Faktor 2) Bezogen auf die Strömungsgeschwindikeit (Qtotal wird nur bei geringen Strömungsgeschwindigkeiten erhöht) | Y33: Leistungsänderung Qtotal | Z33: QSK (Gewählt) (spezifische Ausgangskühlleistung) [W/K] | AA33: QSH (Gewählt) (spezifische Ausgangsheizleistung) [W/K] | AD33: DD | AE33: BB | AF33: DV | AH33: LWA [dB(A)] | AI33: Dp [Pa] | AJ33: QPK [W] | AK33: =IF(AK10<AK11,"Qsk- sens [W]","Qsk [W]") -> Qsk [W] | AL33: =IF($AK$10<$AK$11,"Qsktot [W]","Qsk [W]") -> Qsk [W] | AM33: QPH [W] | AN33: QSH [W] | AO33: QKges [W] | AP33: tKWRL [°C] | AQ33: QHges [W] | AR33: tWWRL [°C] | AS33: tzuK [°C] | AT33: tzuH [°C] | AV33: Materialnummer: | AW33: Düsenanzahl 6,2 Aerodyn. Fläche ( 27,79 mm^2) | AX33: Düsenanzahl 5,3 Aerodyn. Fläche (19,86 mm^2) | AY33: Schallleistung (LwA) [db(A)/Düse 6,2 mm | AZ33: Schallleistung (LwA) [db(A)/Düse] 5,3 mm | BA33: Erhöhung L(W,A) durch hohe Geschwindigkeiten im DN100 Stutzen | BB33: Dp [Pa] | BC33: Aerodyn. Fläche (in mm^2) | BF33: QSK (spezifische Ausgangskühlleistung) [W/K] | BG33: QSH (spezifische Ausgangsheizleistung) [W/K] | BH33: Leistungsfaktor aufgrund der Druckerhöhung in Bezug auf 200 PA | BI33: Leistungsfaktor aufgrund der Volumenstromerhöhung 100 m^3/h 200 PA | BJ33: Wassermenge in % (Kühlleistung | BK33: Leistungen in % bei verschieden Wassermengen (Kühlleistung) | BL33: Wassermenge in % (Heizleistung) | BM33: Leistungen in % bei verschieden Wassermengen Heizleistung | BN33: Leistungsänderung der sensiblen Leistung (Qsens) aufgrund der kondensierenden Betriebs F( Taupunkttemperatur- Wasservorlauftemperatur) =Qsens | BO33: Vsek (in m^3/h) | BP33: Induktionsverhältniss (In Abhägigkeit des Primärdruckes | BQ33: Luftgeschwindigkeit am Wärmetauscher m/S | BR33: Leistungsänderung von Qtotal (Faktor 1) Bezogen auf ( delta T (Taupunkt - Wasservorlauf) | BS33: Leistungsänderung von Qtotal (Faktor 2) Bezogen auf die Strömungsgeschwindikeit (Qtotal wird nur bei geringen Strömungsgeschwindigkeiten erhöht) | BT33: Leistungsänderung Qtotal | BU33: QSK (Gewählt) (spezifische Ausgangskühlleistung) [W/K] | BV33: QSH (Gewählt) (spezifische Ausgangsheizleistung) [W/K] | BW33: Filterfaktor | BX33: DD | BY33: BB | BZ33: DV | CB33: LWA [dB(A)] | CC33: Dp [Pa] | CD33: QPK [W] | CE33: =IF(AK10<AK11,"Qsk- sens [W]","Qsk [W]") -> Qsk [W] | CF33: =IF($AK$10<$AK$11,"Qsktot [W]","Qsk [W]") -> Qsk [W] | CG33: QPH [W] | CH33: QSH [W] | CI33: QKges [W] | CJ33: tKWRL [°C] | CK33: QHges [W] | CL33: tWWRL [°C] | CM33: tzuK [°C] | CN33: tzuH [°C]
A34: 1051632 | B34: 0 | C34: 26 | D34: =0.043*G34+3.679 -> 38.49534614 | E34: =0.0528*G34+3.309 -> 46.06023433 | F34: =IF(Primärvolumenstrom>70,5.7611*LN(Primärvolumenstrom)-23.047,"0") -> 0 | G34: =(Primärvolumenstrom^2)/((0.00456*H34))^2 -> 809.6824683 | H34: =B34*27.79+C34*19.86 -> 516.36 | I34: 42 | J34: 42 | K34: 33 | L34: 28 | M34: =0.788251*EXP(0.001144*G34) -> 1.990404793 | N34: =0.4469088*LN(Primärvolumenstrom)- 0.74223629 -> 1.136877843 | O34: =$AK40/$AG40*100 -> 100 | P34: =IF($O$34=100,100,IF(WT="4L",31.432*LN($O$34)-45.157,21.402*LN($O$34)-0.5837)) -> 100 | Q34: =$AK41/$AG41*100 -> 100 | R34: =IF($Q$34=100,100,IF(WT="4L",31.498*LN($Q$34)-45.397,25.624*LN($Q$34)-19.482)) -> 100 | S34: =IF($AK$10<$AK$11,-0.0125*($AK$11-$AK$10)+1,1) -> 1 | T34: =Primärvolumenstrom*U34 -> 581.1079896 | U34: =0.0055*G34+4.22 -> 8.673253576 | V34: =T34/(0.25*0.63)/3600 -> 1.024881816 | W34: =IF($AK$10<$AK$11,0.0189*($AK$11-$AK$10)+1,1) -> 1 | X34: =IF($AK$10<$AK$11,-0.3822*(V34)+1.1147,1) -> 1 | Y34: =IF(W34*X34<1,1,W34*X34) -> 1 | Z34: =IF(WT="2L",I34,K34) -> 33 | AA34: 28 | AB34: =IF(Filter="MF",1,1.05) -> 1.05 | AE34: 23 | AF34: XS | AH34: =IF(AI34<>"-",10*LOG10(B34*10^(D34/10)+C34*10^(E34/10))+F34,"-") -> - | AI34: =IF(AND(G34<350,G34>100),G34,"-") -> - | AJ34: =IF(AI34<>"-",Primärvolumenstrom*0.335*($AK$7-$AK$8),"-") -> - | AK34: =IF(AI34<>"-",Z34*($AK$7-$AK$10)*(P34/100)*M34*N34*S34*AB34,"-") -> - | AL34: =IF(AI34<>"-",Z34*($AK$7-$AK$10)*(P34/100)*M34*N34*Y34*AB34,"-") -> - | AM34: =IF(AI34<>"-",Primärvolumenstrom*0.335*($AR$8-$AR$7),"-") -> - | AN34: =IF(AI34<>"-",AA34*($AR$10-$AR$7)*(R34/100)*M34*N34*AB34,"-") -> - | AO34: =IF(AI34<>"-",AJ34+AL34,"-") -> - | AP34: =IF(AK34<>"-",IF($AK$10<$AK$11,$AK$10+(AL34/(4.2*AK$40/3.6)),$AK$10+(AK34/(4.2*AK$40/3.6))),"-") -> - | AQ34: =IF(AI34<>"-",AM34+AN34,"-") -> - | AR34: =IF(AI34<>"-",$AR$10-((AN34/(4.2*AK$41/3.6))),"-") -> - | AS34: =IF(AK34<>"-",((T_PRIM+273)*Primärvolumenstrom/3600+U34*Primärvolumenstrom/3600*(T_ANSAUG+273)-AK34/(1176.56*1.00692))/(U34*Primärvolumenstrom/3600+Primärvolumenstrom/3600)-273,"-") -> - | AT34: =IF(AN34<>"-",((T_Prim_H+273)*Primärvolumenstrom/3600+U34*Primärvolumenstrom/3600*(T_Ansaug_H+273)+AN34/(1176.56*1.00692))/(U34*Primärvolumenstrom/3600+Primärvolumenstrom/3600)-273,"-") -> - | AV34: 1051658 | AW34: 0 | AX34: 52 | AY34: =0.043*CC34+3.679 -> 12.38308653 | AZ34: =0.043*CC34+2 -> 10.70408653 | BA34: =IF(Primärvolumenstrom>70,5.7611*LN(Primärvolumenstrom)-23.047,"0") -> 0 | BB34: =(Primärvolumenstrom^2)/((0.00456*BC34))^2 -> 202.4206171 | BC34: =AW34*27.79+AX34*19.86 -> 1032.72 | BD34: 85 | BE34: 85 | BF34: 71 | BG34: 59 | BH34: =0.779327*EXP(0.001193*BB34) -> 0.9921938712 | BI34: =0.44183*LN(Primärvolumenstrom)-1.034703 -> 0.82305634 | BJ34: =CF40/CA40*100 -> 100 | BK34: =IF($BJ$34=100,100,IF(WT="4L",31.498*LN($BJ$34)-45.397,25.424*LN($BJ$34)-19.482)) -> 100 | BL34: =CF41/CA41*100 -> 100 | BM34: =IF($BL$34=100,100,IF(WT="4L",31.498*LN($BL$34)-45.397,25.424*LN($BL$34)-19.482)) -> 100 | BN34: =IF($AK$10<$AK$11,-0.0125*($AK$11-$AK$10)+1,1) -> 1 | BO34: =Primärvolumenstrom*BP34 -> 357.3319974 | BP34: =0.0055*BB34+4.22 -> 5.333313394 | BQ34: =BO34/(0.25*1.23)/3600 -> 0.3227931322 | BR34: =IF($AK$10<$AK$11,0.0189*($AK$11-$AK$10)+1,1) -> 1 | BS34: =IF($AK$10<$AK$11,-0.3822*(BQ34)+1.1147,1) -> 1 | BT34: =IF(BR34*BS34<1,1,BR34*BS34) -> 1 | BU34: =IF(WT="2L",BD34,BF34) -> 71 | BV34: 59 | BW34: =IF(Filter="MF",1,1.05) -> 1.05 | BY34: 47 | BZ34: XS | CB34: =IF(CC34<>"-",10*LOG10(AW34*10^(AY34/10)+AX34*10^(AZ34/10))+BA34,"-") -> 27.86411997 | CC34: =IF(AND(BB34<350,BB34>100),BB34,"-") -> 202.4206171 | CD34: =IF(CC34<>"-",Primärvolumenstrom*0.335*($AK$7-$AK$8),"-") -> 224.45 | CE34: =IF(CC34<>"-",BU34*($AK$7-$AK$10)*(BK34/100)*BH34*BI34*BN34*BW34,"-") -> 608.7987506 | CF34: =IF(CC34<>"-",BU34*($AK$7-$AK$10)*(BK34/100)*BH34*BI34*BT34*BW34,"-") -> 608.7987506 | CG34: =IF(CC34<>"-",Primärvolumenstrom*0.335*($AR$8-$AR$7),"-") -> -89.78 | CH34: =IF(CC34<>"-",BV34*($AR$10-$AR$7)*(BM34/100)*BH34*BI34*BW34,"-") -> 505.9031872 | CI34: =IF(CC34<>"-",CD34+CF34,"-") -> 833.2487506 | CJ34: =IF(CE34<>"-",IF($AK$10<$AK$11,$AK$10+(CF34/(4.2*CF$40/3.6)),$AK$10+(CE34/(4.2*CF$40/3.6))),"-") -> 18.89904167 | CK34: =IF(CC34<>"-",CG34+CH34,"-") -> 416.1231872 | CL34: =IF(CC34<>"-",$AR$10-((CH34/(4.2*CF$41/3.6))),"-") -> 29.5909372 | CM34: =IF(CE34<>"-",((T_PRIM+273)*Primärvolumenstrom/3600+BP34*Primärvolumenstrom/3600*(T_ANSAUG+273)-CE34/(1176.56*1.00692))/(BP34*Primärvolumenstrom/3600+Primärvolumenstrom/3600)-273,"-") -> 20.06129928 | CN34: =IF(CH34<>"-",((T_Prim_H+273)*Primärvolumenstrom/3600+BP34*Primärvolumenstrom/3600*(T_Ansaug_H+273)+CH34/(1176.56*1.00692))/(BP34*Primärvolumenstrom/3600+Primärvolumenstrom/3600)-273,"-") -> 24.99130856
A35: 1051618 | C35: 31 | D35: 28.16999895 | E35: 33.38166848 | F35: =IF(Primärvolumenstrom>70,5.7611*LN(Primärvolumenstrom)-23.047,"0") -> 0 | G35: =(Primärvolumenstrom^2)/((0.00456*H35))^2 -> 569.5581151 | H35: 615.66 | I35: 42 | J35: 42 | K35: 33 | L35: 28 | M35: =0.788251*EXP(0.001144*G35) -> 1.512306202 | N35: =0.4469088*LN(Primärvolumenstrom)- 0.74223629 -> 1.136877843 | P35: =IF($O$34=100,100,IF(WT="4L",31.432*LN($O$34)-45.157,21.402*LN($O$34)-0.5837)) -> 100 | R35: =IF($Q$34=100,100,IF(WT="4L",31.498*LN($Q$34)-45.397,25.624*LN($Q$34)-19.482)) -> 100 | S35: =IF($AK$10<$AK$11,-0.0125*($AK$11-$AK$10)+1,1) -> 1 | T35: =Primärvolumenstrom*U35 -> 492.6221654 | U35: =0.0055*G35+4.22 -> 7.352569633 | V35: =T35/(0.25*0.63)/3600 -> 0.8688221612 | W35: =IF($AK$10<$AK$11,0.0189*($AK$11-$AK$10)+1,1) -> 1 | X35: =IF($AK$10<$AK$11,-0.3822*(V35)+1.1147,1) -> 1 | Y35: =IF(W35*X35<1,1,W35*X35) -> 1 | Z35: 33 | AA35: 28 | AB35: =IF(Filter="MF",1,1.05) -> 1.05 | AE35: 29 | AF35: S | AH35: =IF(AI35<>"-",10*LOG10(B35*10^(D35/10)+C35*10^(E35/10))+F35,"-") -> - | AI35: =IF(AND(G35<350,G35>100),G35,"-") -> - | AJ35: =IF(AI35<>"-",Primärvolumenstrom*0.335*($AK$7-$AK$8),"-") -> - | AK35: =IF(AI35<>"-",Z35*($AK$7-$AK$10)*(P35/100)*M35*N35*S35*AB35,"-") -> - | AL35: =IF(AI35<>"-",Z35*($AK$7-$AK$10)*(P35/100)*M35*N35*Y35*AB35,"-") -> - | AM35: =IF(AI35<>"-",Primärvolumenstrom*0.335*($AR$8-$AR$7),"-") -> - | AN35: =IF(AI35<>"-",AA35*($AR$10-$AR$7)*(R35/100)*M35*N35*AB35,"-") -> - | AO35: =IF(AI35<>"-",AJ35+AL35,"-") -> - | AP35: =IF(AK35<>"-",IF($AK$10<$AK$11,$AK$10+(AL35/(4.2*AK$40/3.6)),$AK$10+(AK35/(4.2*AK$40/3.6))),"-") -> - | AQ35: =IF(AI35<>"-",AM35+AN35,"-") -> - | AR35: =IF(AI35<>"-",$AR$10-((AN35/(4.2*AK$41/3.6))),"-") -> - | AS35: =IF(AK35<>"-",((T_PRIM+273)*Primärvolumenstrom/3600+U35*Primärvolumenstrom/3600*(T_ANSAUG+273)-AK35/(1176.56*1.00692))/(U35*Primärvolumenstrom/3600+Primärvolumenstrom/3600)-273,"-") -> - | AT35: =IF(AN35<>"-",((T_Prim_H+273)*Primärvolumenstrom/3600+U35*Primärvolumenstrom/3600*(T_Ansaug_H+273)+AN35/(1176.56*1.00692))/(U35*Primärvolumenstrom/3600+Primärvolumenstrom/3600)-273,"-") -> - | AV35: 1051654 | AX35: 56 | AY35: =0.043*CC35+3.679 -> 11.18405421 | AZ35: =0.043*CC35+2 -> 9.505054206 | BA35: =IF(Primärvolumenstrom>70,5.7611*LN(Primärvolumenstrom)-23.047,"0") -> 0 | BB35: =(Primärvolumenstrom^2)/((0.00456*BC35))^2 -> 174.5361443 | BC35: =AW35*27.79+AX35*19.86 -> 1112.16 | BD35: 85 | BE35: 85 | BF35: 69 | BG35: 59 | BH35: =0.779327*EXP(0.001193*BB35) -> 0.9597303378 | BI35: =0.44183*LN(Primärvolumenstrom)-1.034703 -> 0.82305634 | BK35: =IF($BJ$34=100,100,IF(WT="4L",31.498*LN($BJ$34)-45.397,25.424*LN($BJ$34)-19.482)) -> 100 | BM35: =IF($BL$34=100,100,IF(WT="4L",31.498*LN($BL$34)-45.397,25.424*LN($BL$34)-19.482)) -> 100 | BN35: =IF($AK$10<$AK$11,-0.0125*($AK$11-$AK$10)+1,1) -> 1 | BO35: =Primärvolumenstrom*BP35 -> 347.0565692 | BP35: =0.0055*BB35+4.22 -> 5.179948794 | BQ35: =BO35/(0.25*1.23)/3600 -> 0.3135109026 | BR35: =IF($AK$10<$AK$11,0.0189*($AK$11-$AK$10)+1,1) -> 1 | BS35: =IF($AK$10<$AK$11,-0.3822*(BQ35)+1.1147,1) -> 1 | BT35: =IF(BR35*BS35<1,1,BR35*BS35) -> 1 | BU35: 69 | BV35: 59 | BW35: =IF(Filter="MF",1,1.05) -> 1.05 | BY35: 50 | BZ35: S | CB35: =IF(CC35<>"-",10*LOG10(AW35*10^(AY35/10)+AX35*10^(AZ35/10))+BA35,"-") -> 26.98693448 | CC35: =IF(AND(BB35<350,BB35>100),BB35,"-") -> 174.5361443 | CD35: =IF(CC35<>"-",Primärvolumenstrom*0.335*($AK$7-$AK$8),"-") -> 224.45 | CE35: =IF(CC35<>"-",BU35*($AK$7-$AK$10)*(BK35/100)*BH35*BI35*BN35*BW35,"-") -> 572.2913449 | CF35: =IF(CC35<>"-",BU35*($AK$7-$AK$10)*(BK35/100)*BH35*BI35*BT35*BW35,"-") -> 572.2913449 | CG35: =IF(CC35<>"-",Primärvolumenstrom*0.335*($AR$8-$AR$7),"-") -> -89.78 | CH35: =IF(CC35<>"-",BV35*($AR$10-$AR$7)*(BM35/100)*BH35*BI35*BW35,"-") -> 489.3505703 | CI35: =IF(CC35<>"-",CD35+CF35,"-") -> 796.7413449 | CJ35: =IF(CE35<>"-",IF($AK$10<$AK$11,$AK$10+(CF35/(4.2*CF$40/3.6)),$AK$10+(CE35/(4.2*CF$40/3.6))),"-") -> 18.72519688 | CK35: =IF(CC35<>"-",CG35+CH35,"-") -> 399.5705703 | CL35: =IF(CC35<>"-",$AR$10-((CH35/(4.2*CF$41/3.6))),"-") -> 29.66975919 | CM35: =IF(CE35<>"-",((T_PRIM+273)*Primärvolumenstrom/3600+BP35*Primärvolumenstrom/3600*(T_ANSAUG+273)-CE35/(1176.56*1.00692))/(BP35*Primärvolumenstrom/3600+Primärvolumenstrom/3600)-273,"-") -> 20.18184754 | CN35: =IF(CH35<>"-",((T_Prim_H+273)*Primärvolumenstrom/3600+BP35*Primärvolumenstrom/3600*(T_Ansaug_H+273)+CH35/(1176.56*1.00692))/(BP35*Primärvolumenstrom/3600+Primärvolumenstrom/3600)-273,"-") -> 24.94406354
A36: 1051630 | B36: 2 | C36: 32 | D36: 23.11498654 | E36: 27.17458348 | F36: =IF(Primärvolumenstrom>70,5.7611*LN(Primärvolumenstrom)-23.047,"0") -> 0 | G36: =(Primärvolumenstrom^2)/((0.00456*H36))^2 -> 451.9996871 | H36: =B36*27.79+C36*19.86 -> 691.1 | I36: 42 | J36: 42 | K36: 32 | L36: 28 | M36: =0.788251*EXP(0.001144*G36) -> 1.322004215 | N36: =0.4469088*LN(Primärvolumenstrom)- 0.74223629 -> 1.136877843 | P36: =IF($O$34=100,100,IF(WT="4L",31.432*LN($O$34)-45.157,21.402*LN($O$34)-0.5837)) -> 100 | R36: =IF($Q$34=100,100,IF(WT="4L",31.498*LN($Q$34)-45.397,25.624*LN($Q$34)-19.482)) -> 100 | S36: =IF($AK$10<$AK$11,-0.0125*($AK$11-$AK$10)+1,1) -> 1 | T36: =Primärvolumenstrom*U36 -> 449.3018847 | U36: =0.0055*G36+4.22 -> 6.705998279 | V36: =T36/(0.25*0.63)/3600 -> 0.7924195497 | W36: =IF($AK$10<$AK$11,0.0189*($AK$11-$AK$10)+1,1) -> 1 | X36: =IF($AK$10<$AK$11,-0.3822*(V36)+1.1147,1) -> 1 | Y36: 1 | Z36: 32 | AA36: 28 | AB36: =IF(Filter="MF",1,1.05) -> 1.05 | AE36: 32 | AF36: M | AH36: - | AI36: =IF(AND(G36<350,G36>100),G36,"-") -> - | AJ36: =IF(AI36<>"-",Primärvolumenstrom*0.335*($AK$7-$AK$8),"-") -> - | AK36: =IF(AI36<>"-",Z36*($AK$7-$AK$10)*(P36/100)*M36*N36*S36*AB36,"-") -> - | AL36: =IF(AI36<>"-",Z36*($AK$7-$AK$10)*(P36/100)*M36*N36*Y36*AB36,"-") -> - | AM36: =IF(AI36<>"-",Primärvolumenstrom*0.335*($AR$8-$AR$7),"-") -> - | AN36: =IF(AI36<>"-",AA36*($AR$10-$AR$7)*(R36/100)*M36*N36*AB36,"-") -> - | AO36: =IF(AI36<>"-",AJ36+AL36,"-") -> - | AP36: =IF(AK36<>"-",IF($AK$10<$AK$11,$AK$10+(AL36/(4.2*AK$40/3.6)),$AK$10+(AK36/(4.2*AK$40/3.6))),"-") -> - | AQ36: =IF(AI36<>"-",AM36+AN36,"-") -> - | AR36: =IF(AI36<>"-",$AR$10-((AN36/(4.2*AK$41/3.6))),"-") -> - | AS36: =IF(AK36<>"-",((T_PRIM+273)*Primärvolumenstrom/3600+U36*Primärvolumenstrom/3600*(T_ANSAUG+273)-AK36/(1176.56*1.00692))/(U36*Primärvolumenstrom/3600+Primärvolumenstrom/3600)-273,"-") -> - | AT36: =IF(AN36<>"-",((T_Prim_H+273)*Primärvolumenstrom/3600+U36*Primärvolumenstrom/3600*(T_Ansaug_H+273)+AN36/(1176.56*1.00692))/(U36*Primärvolumenstrom/3600+Primärvolumenstrom/3600)-273,"-") -> - | AV36: 1051655 | AX36: 70 | AY36: =0.043*CC36+3.679 -> 8.482234692 | AZ36: 6.803234692 | BA36: =IF(Primärvolumenstrom>70,5.7611*LN(Primärvolumenstrom)-23.047,"0") -> 0 | BB36: =(Primärvolumenstrom^2)/((0.00456*BC36))^2 -> 111.7031324 | BC36: =AW36*27.79+AX36*19.86 -> 1390.2 | BD36: 85 | BE36: 85 | BF36: 70 | BG36: 59 | BH36: =0.779327*EXP(0.001193*BB36) -> 0.8904193786 | BI36: =0.44183*LN(Primärvolumenstrom)-1.034703 -> 0.82305634 | BK36: =IF($BJ$34=100,100,IF(WT="4L",31.498*LN($BJ$34)-45.397,25.424*LN($BJ$34)-19.482)) -> 100 | BM36: =IF($BL$34=100,100,IF(WT="4L",31.498*LN($BL$34)-45.397,25.424*LN($BL$34)-19.482)) -> 100 | BN36: =IF($AK$10<$AK$11,-0.0125*($AK$11-$AK$10)+1,1) -> 1 | BO36: =Primärvolumenstrom*BP36 -> 323.9026043 | BP36: =0.0055*BB36+4.22 -> 4.834367228 | BQ36: =BO36/(0.25*1.23)/3600 -> 0.2925949451 | BR36: =IF($AK$10<$AK$11,0.0189*($AK$11-$AK$10)+1,1) -> 1 | BS36: =IF($AK$10<$AK$11,-0.3822*(BQ36)+1.1147,1) -> 1 | BT36: 1 | BU36: 70 | BV36: 59 | BW36: =IF(Filter="MF",1,1.05) -> 1.05 | BY36: 64 | BZ36: M | CB36: =IF(CC36<>"-",10*LOG10(AW36*10^(AY36/10)+AX36*10^(AZ36/10))+BA36,"-") -> 25.25421509 | CC36: =IF(AND(BB36<350,BB36>100),BB36,"-") -> 111.7031324 | CD36: =IF(CC36<>"-",Primärvolumenstrom*0.335*($AK$7-$AK$8),"-") -> 224.45 | CE36: =IF(CC36<>"-",BU36*($AK$7-$AK$10)*(BK36/100)*BH36*BI36*BN36*BW36,"-") -> 538.6560064 | CF36: 538.6560064 | CG36: =IF(CC36<>"-",Primärvolumenstrom*0.335*($AR$8-$AR$7),"-") -> -89.78 | CH36: 454.0100625 | CI36: =IF(CC36<>"-",CD36+CF36,"-") -> 763.1060064 | CJ36: =IF(CE36<>"-",IF($AK$10<$AK$11,$AK$10+(CF36/(4.2*CF$40/3.6)),$AK$10+(CE36/(4.2*CF$40/3.6))),"-") -> 18.5650286 | CK36: =IF(CC36<>"-",CG36+CH36,"-") -> 364.2300625 | CL36: =IF(CC36<>"-",$AR$10-((CH36/(4.2*CF$41/3.6))),"-") -> 29.83804732 | CM36: =IF(CE36<>"-",((T_PRIM+273)*Primärvolumenstrom/3600+BP36*Primärvolumenstrom/3600*(T_ANSAUG+273)-CE36/(1176.56*1.00692))/(BP36*Primärvolumenstrom/3600+Primärvolumenstrom/3600)-273,"-") -> 20.0986957 | CN36: =IF(CH36<>"-",((T_Prim_H+273)*Primärvolumenstrom/3600+BP36*Primärvolumenstrom/3600*(T_Ansaug_H+273)+CH36/(1176.56*1.00692))/(BP36*Primärvolumenstrom/3600+Primärvolumenstrom/3600)-273,"-") -> 24.8437218
A37: 1051631 | B37: 20 | C37: 14 | D37: 17.03028068 | E37: 19.7031307 | F37: =IF(Primärvolumenstrom>70,5.7611*LN(Primärvolumenstrom)-23.047,"0") -> 0 | G37: =(Primärvolumenstrom^2)/((0.00456*H37))^2 -> 310.4948996 | H37: =B37*27.79+C37*19.86 -> 833.84 | I37: 42 | J37: 42 | K37: 33 | L37: 28 | M37: =0.788251*EXP(0.001144*G37) -> 1.124420119 | N37: =0.4469088*LN(Primärvolumenstrom)- 0.74223629 -> 1.136877843 | P37: =IF($O$34=100,100,IF(WT="4L",31.432*LN($O$34)-45.157,21.402*LN($O$34)-0.5837)) -> 100 | R37: =IF($Q$34=100,100,IF(WT="4L",31.498*LN($Q$34)-45.397,25.624*LN($Q$34)-19.482)) -> 100 | S37: =IF($AK$10<$AK$11,-0.0125*($AK$11-$AK$10)+1,1) -> 1 | T37: =Primärvolumenstrom*U37 -> 397.1573705 | U37: =0.0055*G37+4.22 -> 5.927721948 | V37: =T37/(0.25*0.63)/3600 -> 0.7004539162 | W37: =IF($AK$10<$AK$11,0.0189*($AK$11-$AK$10)+1,1) -> 1 | X37: =IF($AK$10<$AK$11,-0.3822*(V37)+1.1147,1) -> 1 | Y37: 1 | Z37: 33 | AA37: 28 | AB37: =IF(Filter="MF",1,1.05) -> 1.05 | AD37: 8 | AE37: 24 | AF37: L | AH37: 33.64904674 | AI37: =IF(AND(G37<350,G37>100),G37,"-") -> 310.4948996 | AJ37: =IF(AI37<>"-",Primärvolumenstrom*0.335*($AK$7-$AK$8),"-") -> 224.45 | AK37: =IF(AI37<>"-",Z37*($AK$7-$AK$10)*(P37/100)*M37*N37*S37*AB37,"-") -> 442.9407628 | AL37: 442.9407628 | AM37: =IF(AI37<>"-",Primärvolumenstrom*0.335*($AR$8-$AR$7),"-") -> -89.78 | AN37: 375.828526 | AO37: =IF(AI37<>"-",AJ37+AL37,"-") -> 667.3907628 | AP37: =IF(AK37<>"-",IF($AK$10<$AK$11,$AK$10+(AL37/(4.2*AK$40/3.6)),$AK$10+(AK37/(4.2*AK$40/3.6))),"-") -> 19.79663511 | AQ37: =IF(AI37<>"-",AM37+AN37,"-") -> 286.048526 | AR37: =IF(AI37<>"-",$AR$10-((AN37/(4.2*AK$41/3.6))),"-") -> 28.77861263 | AS37: =IF(AK37<>"-",((T_PRIM+273)*Primärvolumenstrom/3600+U37*Primärvolumenstrom/3600*(T_ANSAUG+273)-AK37/(1176.56*1.00692))/(U37*Primärvolumenstrom/3600+Primärvolumenstrom/3600)-273,"-") -> 21.65668528 | AT37: =IF(AN37<>"-",((T_Prim_H+273)*Primärvolumenstrom/3600+U37*Primärvolumenstrom/3600*(T_Ansaug_H+273)+AN37/(1176.56*1.00692))/(U37*Primärvolumenstrom/3600+Primärvolumenstrom/3600)-273,"-") -> 23.88307888 | AV37: 1051652 | AW37: 20 | AX37: 50 | AY37: =0.043*CC37+2.679 ->  | BA37: =IF(Primärvolumenstrom>70,5.7611*LN(Primärvolumenstrom)-23.047,"0") -> 0 | BB37: =(Primärvolumenstrom^2)/((0.00456*BC37))^2 -> 89.99725021 | BC37: =AW37*27.79+AX37*19.86 -> 1548.8 | BD37: 85 | BE37: 85 | BF37: 71 | BG37: 59 | BH37: =0.779327*EXP(0.001193*BB37) -> 0.8676578425 | BI37: =0.44183*LN(Primärvolumenstrom)-1.034703 -> 0.82305634 | BK37: =IF($BJ$34=100,100,IF(WT="4L",31.498*LN($BJ$34)-45.397,25.424*LN($BJ$34)-19.482)) -> 100 | BM37: =IF($BL$34=100,100,IF(WT="4L",31.498*LN($BL$34)-45.397,25.424*LN($BL$34)-19.482)) -> 100 | BN37: =IF($AK$10<$AK$11,-0.0125*($AK$11-$AK$10)+1,1) -> 1 | BO37: =Primärvolumenstrom*BP37 -> 315.9039867 | BP37: =0.0055*BB37+4.22 -> 4.714984876 | BQ37: =BO37/(0.25*1.23)/3600 -> 0.285369455 | BR37: =IF($AK$10<$AK$11,0.0189*($AK$11-$AK$10)+1,1) -> 1 | BS37: =IF($AK$10<$AK$11,-0.3822*(BQ37)+1.1147,1) -> 1 | BT37: 1 | BU37: 71 | BV37: 59 | BW37: =IF(Filter="MF",1,1.05) -> 1.05 | BX37: 15 | BY37: 49 | BZ37: L | CB37: - | CC37: =IF(AND(BB37<350,BB37>100),BB37,"-") -> - | CD37: =IF(CC37<>"-",Primärvolumenstrom*0.335*($AK$7-$AK$8),"-") -> - | CE37: =IF(CC37<>"-",BU37*($AK$7-$AK$10)*(BK37/100)*BH37*BI37*BN37*BW37,"-") -> - | CF37: - | CG37: =IF(CC37<>"-",Primärvolumenstrom*0.335*($AR$8-$AR$7),"-") -> - | CH37: - | CI37: =IF(CC37<>"-",CD37+CF37,"-") -> - | CJ37: =IF(CE37<>"-",IF($AK$10<$AK$11,$AK$10+(CF37/(4.2*CF$40/3.6)),$AK$10+(CE37/(4.2*CF$40/3.6))),"-") -> - | CK37: =IF(CC37<>"-",CG37+CH37,"-") -> - | CL37: =IF(CC37<>"-",$AR$10-((CH37/(4.2*CF$41/3.6))),"-") -> - | CM37: =IF(CE37<>"-",((T_PRIM+273)*Primärvolumenstrom/3600+BP37*Primärvolumenstrom/3600*(T_ANSAUG+273)-CE37/(1176.56*1.00692))/(BP37*Primärvolumenstrom/3600+Primärvolumenstrom/3600)-273,"-") -> - | CN37: =IF(CH37<>"-",((T_Prim_H+273)*Primärvolumenstrom/3600+BP37*Primärvolumenstrom/3600*(T_Ansaug_H+273)+CH37/(1176.56*1.00692))/(BP37*Primärvolumenstrom/3600+Primärvolumenstrom/3600)-273,"-") -> -
A38: 1051628 | B38: 32 | C38: 2 | D38: 14.43515242 | E38: 16.5165546 | F38: =IF(Primärvolumenstrom>70,5.7611*LN(Primärvolumenstrom)-23.047,"0") -> 0 | G38: =(Primärvolumenstrom^2)/((0.00456*H38))^2 -> 250.1430795 | H38: =B38*27.79+C38*19.86 -> 929 | I38: 42 | J38: 42 | K38: 33 | L38: 28 | M38: =0.788251*EXP(0.001144*G38) -> 1.049406715 | N38: =0.4469088*LN(Primärvolumenstrom)- 0.74223629 -> 1.136877843 | P38: =IF($O$34=100,100,IF(WT="4L",31.432*LN($O$34)-45.157,21.402*LN($O$34)-0.5837)) -> 100 | R38: =IF($Q$34=100,100,IF(WT="4L",31.498*LN($Q$34)-45.397,25.624*LN($Q$34)-19.482)) -> 100 | S38: =IF($AK$10<$AK$11,-0.0125*($AK$11-$AK$10)+1,1) -> 1 | T38: =Primärvolumenstrom*U38 -> 374.9177248 | U38: =0.0055*G38+4.22 -> 5.595786937 | V38: =T38/(0.25*0.63)/3600 -> 0.6612305552 | W38: =IF($AK$10<$AK$11,0.0189*($AK$11-$AK$10)+1,1) -> 1 | X38: =IF($AK$10<$AK$11,-0.3822*(V38)+1.1147,1) -> 1 | Y38: 1 | Z38: 33 | AA38: 28 | AB38: =IF(Filter="MF",1,1.05) -> 1.05 | AD38: 22 | AE38: 10 | AF38: XL | AH38: 29.90424923 | AI38: =IF(AND(G38<350,G38>100),G38,"-") -> 250.1430795 | AJ38: =IF(AI38<>"-",Primärvolumenstrom*0.335*($AK$7-$AK$8),"-") -> 224.45 | AK38: =IF(AI38<>"-",Z38*($AK$7-$AK$10)*(P38/100)*M38*N38*S38*AB38,"-") -> 413.3908695 | AL38: 413.3908695 | AM38: =IF(AI38<>"-",Primärvolumenstrom*0.335*($AR$8-$AR$7),"-") -> -89.78 | AN38: 350.7558892 | AO38: =IF(AI38<>"-",AJ38+AL38,"-") -> 637.8408695 | AP38: =IF(AK38<>"-",IF($AK$10<$AK$11,$AK$10+(AL38/(4.2*AK$40/3.6)),$AK$10+(AK38/(4.2*AK$40/3.6))),"-") -> 19.54335031 | AQ38: =IF(AI38<>"-",AM38+AN38,"-") -> 260.9758892 | AR38: =IF(AI38<>"-",$AR$10-((AN38/(4.2*AK$41/3.6))),"-") -> 28.99352095 | AS38: =IF(AK38<>"-",((T_PRIM+273)*Primärvolumenstrom/3600+U38*Primärvolumenstrom/3600*(T_ANSAUG+273)-AK38/(1176.56*1.00692))/(U38*Primärvolumenstrom/3600+Primärvolumenstrom/3600)-273,"-") -> 21.64129926 | AT38: =IF(AN38<>"-",((T_Prim_H+273)*Primärvolumenstrom/3600+U38*Primärvolumenstrom/3600*(T_Ansaug_H+273)+AN38/(1176.56*1.00692))/(U38*Primärvolumenstrom/3600+Primärvolumenstrom/3600)-273,"-") -> 23.80543954 | AV38: 1051656 | AW38: 43 | AX38: 27 | AY38: =0.043*CC38+2.679 ->  | BA38: =IF(Primärvolumenstrom>70,5.7611*LN(Primärvolumenstrom)-23.047,"0") -> 0 | BB38: =(Primärvolumenstrom^2)/((0.00456*BC38))^2 -> 72.03282552 | BC38: =AW38*27.79+AX38*19.86 -> 1731.19 | BD38: 85 | BE38: 85 | BF38: 70 | BG38: 59 | BH38: =0.779327*EXP(0.001193*BB38) -> 0.8492604293 | BI38: =0.44183*LN(Primärvolumenstrom)-1.034703 -> 0.82305634 | BK38: =IF($BJ$34=100,100,IF(WT="4L",31.498*LN($BJ$34)-45.397,25.424*LN($BJ$34)-19.482)) -> 100 | BM38: =IF($BL$34=100,100,IF(WT="4L",31.498*LN($BL$34)-45.397,25.424*LN($BL$34)-19.482)) -> 100 | BN38: =IF($AK$10<$AK$11,-0.0125*($AK$11-$AK$10)+1,1) -> 1 | BO38: =Primärvolumenstrom*BP38 -> 309.2840962 | BP38: =0.0055*BB38+4.22 -> 4.61618054 | BQ38: =BO38/(0.25*1.23)/3600 -> 0.2793894275 | BR38: =IF($AK$10<$AK$11,0.0189*($AK$11-$AK$10)+1,1) -> 1 | BS38: =IF($AK$10<$AK$11,-0.3822*(BQ38)+1.1147,1) -> 1 | BT38: 1 | BU38: 70 | BV38: 59 | BW38: =IF(Filter="MF",1,1.05) -> 1.05 | BX38: 32 | BY38: 32 | BZ38: XL | CB38: - | CC38: =IF(AND(BB38<350,BB38>100),BB38,"-") -> - | CD38: =IF(CC38<>"-",Primärvolumenstrom*0.335*($AK$7-$AK$8),"-") -> - | CE38: =IF(CC38<>"-",BU38*($AK$7-$AK$10)*(BK38/100)*BH38*BI38*BN38*BW38,"-") -> - | CF38: - | CG38: =IF(CC38<>"-",Primärvolumenstrom*0.335*($AR$8-$AR$7),"-") -> - | CH38: - | CI38: =IF(CC38<>"-",CD38+CF38,"-") -> - | CJ38: =IF(CE38<>"-",IF($AK$10<$AK$11,$AK$10+(CF38/(4.2*CF$40/3.6)),$AK$10+(CE38/(4.2*CF$40/3.6))),"-") -> - | CK38: =IF(CC38<>"-",CG38+CH38,"-") -> - | CL38: =IF(CC38<>"-",$AR$10-((CH38/(4.2*CF$41/3.6))),"-") -> - | CM38: =IF(CE38<>"-",((T_PRIM+273)*Primärvolumenstrom/3600+BP38*Primärvolumenstrom/3600*(T_ANSAUG+273)-CE38/(1176.56*1.00692))/(BP38*Primärvolumenstrom/3600+Primärvolumenstrom/3600)-273,"-") -> - | CN38: =IF(CH38<>"-",((T_Prim_H+273)*Primärvolumenstrom/3600+BP38*Primärvolumenstrom/3600*(T_Ansaug_H+273)+CH38/(1176.56*1.00692))/(BP38*Primärvolumenstrom/3600+Primärvolumenstrom/3600)-273,"-") -> -
AF39: =VLOOKUP("Nennwassermenge",'Legende - Legend'!$B$5:$E$64,IF(Sprache="Deutsch",1,IF(Sprache="English",2,IF(Sprache="Francais",3,IF(Sprache="Italiano",4,IF(Sprache="Portugues",5,6))))),FALSE) -> Nennwassermenge | AK39: =VLOOKUP("gewählte Wassermengen bei Dp Wasser:",'Legende - Legend'!$B$5:$E$64,IF(Sprache="Deutsch",1,IF(Sprache="English",2,IF(Sprache="Francais",3,IF(Sprache="Italiano",4,IF(Sprache="Portugues",5,6))))),FALSE) -> gewählte Wassermengen bei Dp Wasser: | BZ39: =VLOOKUP("Nennwassermenge",'Legende - Legend'!$B$5:$E$64,IF(Sprache="Deutsch",1,IF(Sprache="English",2,IF(Sprache="Francais",3,IF(Sprache="Italiano",4,IF(Sprache="Portugues",5,6))))),FALSE) -> Nennwassermenge | CF39: =VLOOKUP("gewählte Wassermengen bei Dp Wasser:",'Legende - Legend'!$B$5:$E$64,IF(Sprache="Deutsch",1,IF(Sprache="English",2,IF(Sprache="Francais",3,IF(Sprache="Italiano",4,IF(Sprache="Portugues",5,6))))),FALSE) -> gewählte Wassermengen bei Dp Wasser:
AF40: wOK= | AG40: =IF(WT="2L",250,100) -> 100 | AH40: [kg/h] | AK40: 100 | AN40: [kg/h] | AO40: DpK = | AP40: =IF(WT="4L",0.001*AK40^1.7387,0.0009*AK40^1.8246) -> 3.001926122 | AQ40: [kPa] | BZ40: wOK= | CA40: =IF(WT="2L",420,180) -> 180 | CB40: [kg/h] | CF40: 180 | CH40: [kg/h] | CI40: DpK = | CJ40: =IF(WT="4L",0.0014*CF40^1.8187,0.0003*CF40^1.857) -> 17.69261963 | CK40: [kPa]
AF41: wOH= | AG41: =IF(WT="2L",250,100) -> 100 | AH41: [kg/h] | AK41: 100 | AN41: [kg/h] | AO41: DpH = | AP41: =IF(WT="4L",0.0005*AK41^1.8038,0.0008*AK41^1.8422) -> 2.025676101 | AQ41: [kPa] | AV41: Wärmetauscher | AX41: Wert | AY41: Wert für Marko | BZ41: wOH= | CA41: =IF(WT="2L",420,180) -> 180 | CB41: [kg/h] | CF41: 180 | CH41: [kg/h] | CI41: DpH = | CJ41: =IF(WT="4L",0.0007*CF41^1.8615,0.0003*CF41^1.8329) -> 11.04810539 | CK41: [kPa]
AF42: QE = | AG42: =IF(WT="2L",503,412) -> 412 | AH42: W | AJ42: =IF(AK40/AG40<0.2,"Kühlwassermenge mind. 20% von Nennwassermenge!",0) -> 0 | AV42: =VLOOKUP("2-Leiter-System",'Legende - Legend'!$B$5:$E$64,IF(Sprache="Deutsch",1,IF(Sprache="English",2,IF(Sprache="Francais",3,IF(Sprache="Italiano",4,IF(Sprache="Portugues",5,6))))),FALSE) -> 2-Leiter-System | AW42: 2-Pipe-System | AX42: 4-Leiter-System | AY42: =IF(OR(AX42='Legende - Legend'!B30,AX42='Legende - Legend'!C30,AX42='Legende - Legend'!D30,AX42='Legende - Legend'!E30),"2L","4L") -> 4L | BZ42: QE = | CA42: =IF(WT="2L",872,715) -> 715 | CB42: W | CD42: =IF(CF40/CA40<0.2,"Kühlwassermenge mind. 20% von Nennwassermenge!",0) -> 0
AF43: =VLOOKUP("Eigenkonvektion bei Warmwasservorlaufttemperatur 70 °C, Raumlufttemperatur 20 °C und Nennwassermenge",'Legende - Legend'!$B$5:$E$64,IF(Sprache="Deutsch",1,IF(Sprache="English",2,IF(Sprache="Francais",3,IF(Sprache="Italiano",4,IF(Sprache="Portugues",5,6))))),FALSE) -> Eigenkonvektion bei Warmwasservorlaufttemperatur 70 °C, Raumlufttemperatur 20 °C und Nennwassermenge | AV43: =VLOOKUP("4-Leiter-System",'Legende - Legend'!$B$5:$E$64,IF(Sprache="Deutsch",1,IF(Sprache="English",2,IF(Sprache="Francais",3,IF(Sprache="Italiano",4,IF(Sprache="Portugues",5,6))))),FALSE) -> 4-Leiter-System | AW43: 4-Pipe-System | BZ43: =VLOOKUP("Eigenkonvektion bei Warmwasservorlaufttemperatur 70 °C, Raumlufttemperatur 20 °C und Nennwassermenge",'Legende - Legend'!$B$5:$E$64,IF(Sprache="Deutsch",1,IF(Sprache="English",2,IF(Sprache="Francais",3,IF(Sprache="Italiano",4,IF(Sprache="Portugues",5,6))))),FALSE) -> Eigenkonvektion bei Warmwasservorlaufttemperatur 70 °C, Raumlufttemperatur 20 °C und Nennwassermenge
I44: 2-Leiter | K44: 4 Leiter | Y44: Leistungsänderung Qtotal | AB44: Filter Faktor ohne Filter sind 5 % mehr Leistung möglich | AD44: =VLOOKUP("Düsenbelegung (Kunstoffdüsen)",'Legende - Legend'!$B$5:$E$64,IF(Sprache="Deutsch",1,IF(Sprache="English",2,IF(Sprache="Francais",3,IF(Sprache="Italiano",4,IF(Sprache="Portugues",5,6))))),FALSE) -> Düsenbelegung (Kunstoffdüsen) | AF44: =VLOOKUP("Baugröße 800",'Legende - Legend'!$B$5:$E$64,IF(Sprache="Deutsch",1,IF(Sprache="English",2,IF(Sprache="Francais",3,IF(Sprache="Italiano",4,IF(Sprache="Portugues",5,6))))),FALSE) -> Baugröße 800
A45: Materialnummer: | B45: Düsenanzahl 6,2 Aerodyn. Fläche ( 27,79 mm^2) | C45: Düsenanzahl 5,3 Aerodyn. Fläche (19,86 mm^2) | D45: Schallleistung (LwA) [db(A)/Düse 6,2 mm | E45: Schallleistung (LwA) [db(A)/Düse] 5,3 mm | F45: Erhöhung L(W,A) durch hohe Geschwindigkeiten im DN100 Stutzen | G45: Dp [Pa] | H45: Aerodyn. Fläche (in mm^2) | I45: QSK (spezifische Ausgangskühlleistung) [W/K] | J45: QSH (spezifische Ausgangsheizleistung) [W/K] | K45: QSK (spezifische Ausgangskühlleistung) [W/K] | L45: QSH (spezifische Ausgangsheizleistung) [W/K] | M45: Leistungsfaktor aufgrund der Druckerhöhung in Bezug auf 200 PA | N45: Leistungsfaktor aufgrund der Volumenstromerhöhung 40 m^3/h 200 PA | O45: Wassermenge in % (Kühlleistung | P45: Leistungen in % bei verschieden Wassermengen (Kühlleistung) | Q45: Wassermenge in % (Heizleistung) | R45: Leistungen in % bei verschieden Wassermengen Heizleistung | S45: Leistungsänderung der sensiblen Leistung (Qsens) aufgrund der kondensierenden Betriebs F( Taupunkttemperatur- Wasservorlauftemperatur) =Qsens | T45: Vsek (in m^3/h) | U45: Induktionsverhältniss (In Abhägigkeit des Primärdruckes | V45: Luftgeschwindigkeit am Wärmetauscher m/S | W45: Leistungsänderung von Qtotal (Faktor 1) Bezogen auf ( delta T (Taupunkt - Wasservorlauf) | X45: Leistungsänderung von Qtotal (Faktor 2) Bezogen auf die Strömungsgeschwindikeit (Qtotal wird nur bei geringen Strömungsgeschwindigkeiten erhöht) | Y45: Leistungsänderung Qtotal | Z45: QSK (Gewählt) (spezifische Ausgangskühlleistung) [W/K] | AA45: QSH (Gewählt) (spezifische Ausgangsheizleistung) [W/K] | AD45: DD | AE45: BB | AF45: DV | AH45: LWA [dB(A)] | AI45: Dp [Pa] | AJ45: QPK [W] | AK45: =IF(AK10<AK11,"Qsk- sens [W]","Qsk [W]") -> Qsk [W] | AL45: =IF($AK$10<$AK$11,"Qsktot [W]","Qsk [W]") -> Qsk [W] | AM45: QPH [W] | AN45: QSH [W] | AO45: QKges [W] | AP45: tKWRL [°C] | AQ45: QHges [W] | AR45: tWWRL [°C] | AS45: tzuK [°C] | AT45: tzuH [°C]
A46: 1051638 | B46: 0 | C46: 32 | D46: =0.043*G46+3.679 -> 26.66322851 | E46: =0.0528*G46+2.309 -> 30.53149454 | F46: =IF(Primärvolumenstrom>70,5.7611*LN(Primärvolumenstrom)-23.047,"0") -> 0 | G46: =(Primärvolumenstrom^2)/((0.00456*H46))^2 -> 534.516942 | H46: =B46*27.79+C46*19.86 -> 635.52 | I46: 54 | J46: 54 | K46: 46 | L46: 36 | M46: =0.831057*EXP(0.000889*G46) -> 1.336599453 | N46: =0.44905259*LN(Primärvolumenstrom)- 0.88958376 -> 0.9985443509 | O46: =$AK52/$AG52*100 -> 100 | P46: =IF($O$46=100,100,IF(WT="4L",31.432*LN($O$46)-45.157,21.402*LN($O$46)-0.5837)) -> 100 | Q46: =$AK53/$AG53*100 -> 100 | R46: =IF($Q$46=100,100,IF(WT="4L",31.498*LN($Q$46)-45.397,25.624*LN($Q$46)-19.482)) -> 100 | S46: =IF($AK$10<$AK$11,-0.0125*($AK$11-$AK$10)+1,1) -> 1 | T46: =Primärvolumenstrom*U46 -> 479.7094931 | U46: =0.0055*G46+4.22 -> 7.159843181 | V46: =T46/(0.25*0.8)/3600 -> 0.6662631849 | W46: =IF($AK$10<$AK$11,0.0189*($AK$11-$AK$10)+1,1) -> 1 | X46: =IF($AK$10<$AK$11,-0.3822*(V46)+1.1147,1) -> 1 | Y46: 1 | Z46: =IF(WT="2L",I46,K46) -> 46 | AA46: 36 | AB46: =IF(Filter="MF",1,1.05) -> 1.05 | AD46: 0 | AE46: 29 | AF46: XS | AH46: =IF(AI46<>"-",10*LOG10(B46*10^(D46/10)+C46*10^(E46/10))+F46,"-") -> - | AI46: =IF(AND(G46<350,G46>100),G46,"-") -> - | AJ46: =IF(AI46<>"-",Primärvolumenstrom*0.335*($AK$7-$AK$8),"-") -> - | AK46: =IF(AI46<>"-",Z46*($AK$7-$AK$10)*(P46/100)*M46*N46*S46*AB46,"-") -> - | AL46: =IF(AI46<>"-",Z46*($AK$7-$AK$10)*(P46/100)*M46*N46*AB46*Y46,"-") -> - | AM46: =IF(AI46<>"-",Primärvolumenstrom*0.335*($AR$8-$AR$7),"-") -> - | AN46: =IF(AI46<>"-",AA46*($AR$10-$AR$7)*(R46/100)*M46*N46*AB46,"-") -> - | AO46: =IF(AI46<>"-",AJ46+AL46,"-") -> - | AP46: =IF(AK46<>"-",IF($AK$10<$AK$11,$AK$10+(AL46/(4.2*AK$52/3.6)),$AK$10+(AK46/(4.2*AK$52/3.6))),"-") -> - | AQ46: =IF(AI46<>"-",AM46+AN46,"-") -> - | AR46: =IF(AI46<>"-",$AR$10-((AN46/(4.2*AK$53/3.6))),"-") -> - | AS46: =IF(AK46<>"-",((T_PRIM+273)*Primärvolumenstrom/3600+U46*Primärvolumenstrom/3600*(T_ANSAUG+273)-AK46/(1176.56*1.00692))/(U46*Primärvolumenstrom/3600+Primärvolumenstrom/3600)-273,"-") -> - | AT46: =IF(AN46<>"-",((T_PRIM+273)*Primärvolumenstrom/3600+U46*Primärvolumenstrom/3600*(T_ANSAUG+273)+AN46/(1176.56*1.00692))/(U46*Primärvolumenstrom/3600+Primärvolumenstrom/3600)-273,"-") -> - | AV46: Wärmetauscher | AX46: Wert | AY46: Wert für Marko
A47: 1051298 | B47: 0 | C47: 38 | D47: =0.043*G47+3.679 -> 19.97806509 | E47: =0.0528*G47+3.309 -> 23.32273574 | F47: =IF(Primärvolumenstrom>70,5.7611*LN(Primärvolumenstrom)-23.047,"0") -> 0 | G47: =(Primärvolumenstrom^2)/((0.00456*H47))^2 -> 379.0480253 | H47: =B47*27.79+C47*19.86 -> 754.68 | I47: 54 | J47: 54 | K47: 43 | L47: 37 | M47: =0.831057*EXP(0.000889*G47) -> 1.164063382 | N47: =0.44905259*LN(Primärvolumenstrom)- 0.88958376 -> 0.9985443509 | P47: =IF($O$46=100,100,IF(WT="4L",31.432*LN($O$46)-45.157,21.402*LN($O$46)-0.5837)) -> 100 | R47: =IF($Q$46=100,100,IF(WT="4L",31.498*LN($Q$46)-45.397,25.624*LN($Q$46)-19.482)) -> 100 | S47: =IF($AK$10<$AK$11,-0.0125*($AK$11-$AK$10)+1,1) -> 1 | T47: =Primärvolumenstrom*U47 -> 422.4191973 | U47: =0.0055*G47+4.22 -> 6.304764139 | V47: =T47/(0.25*0.8)/3600 -> 0.5866933296 | W47: =IF($AK$10<$AK$11,0.0189*($AK$11-$AK$10)+1,1) -> 1 | X47: =IF($AK$10<$AK$11,-0.3822*(V47)+1.1147,1) -> 1 | Y47: 1 | Z47: 43 | AA47: 37 | AB47: =IF(Filter="MF",1,1.05) -> 1.05 | AE47: 35 | AF47: S | AH47: =IF(AI47<>"-",10*LOG10(B47*10^(D47/10)+C47*10^(E47/10))+F47,"-") -> - | AI47: =IF(AND(G47<350,G47>100),G47,"-") -> - | AJ47: =IF(AI47<>"-",Primärvolumenstrom*0.335*($AK$7-$AK$8),"-") -> - | AK47: =IF(AI47<>"-",Z47*($AK$7-$AK$10)*(P47/100)*M47*N47*S47*AB47,"-") -> - | AL47: =IF(AI47<>"-",Z47*($AK$7-$AK$10)*(P47/100)*M47*N47*AB47*Y47,"-") -> - | AM47: =IF(AI47<>"-",Primärvolumenstrom*0.335*($AR$8-$AR$7),"-") -> - | AN47: =IF(AI47<>"-",AA47*($AR$10-$AR$7)*(R47/100)*M47*N47*AB47,"-") -> - | AO47: =IF(AI47<>"-",AJ47+AL47,"-") -> - | AP47: =IF(AK47<>"-",IF($AK$10<$AK$11,$AK$10+(AL47/(4.2*AK$52/3.6)),$AK$10+(AK47/(4.2*AK$52/3.6))),"-") -> - | AQ47: =IF(AI47<>"-",AM47+AN47,"-") -> - | AR47: =IF(AI47<>"-",$AR$10-((AN47/(4.2*AK$53/3.6))),"-") -> - | AS47: =IF(AK47<>"-",((T_PRIM+273)*Primärvolumenstrom/3600+U47*Primärvolumenstrom/3600*(T_ANSAUG+273)-AK47/(1176.56*1.00692))/(U47*Primärvolumenstrom/3600+Primärvolumenstrom/3600)-273,"-") -> - | AT47: =IF(AN47<>"-",((T_PRIM+273)*Primärvolumenstrom/3600+U47*Primärvolumenstrom/3600*(T_ANSAUG+273)+AN47/(1176.56*1.00692))/(U47*Primärvolumenstrom/3600+Primärvolumenstrom/3600)-273,"-") -> - | AV47: =VLOOKUP("Metalldüsen",'Legende - Legend'!$B$5:$E$64,IF(Sprache="Deutsch",1,IF(Sprache="English",2,IF(Sprache="Francais",3,IF(Sprache="Italiano",4,IF(Sprache="Portugues",5,6))))),FALSE) -> Metalldüsen | AW47: Metall Nozzle | AX47: Metalldüsen | AY47: =IF(OR(AX47="Plastic Nozzle",AX47="Kunstoffdüse"),"P","M") -> M
A48: 1051639 | B48: 4 | C48: 42 | D48: 14.06784908 | E48: 16.06554026 | F48: =IF(Primärvolumenstrom>70,5.7611*LN(Primärvolumenstrom)-23.047,"0") -> 0 | G48: =(Primärvolumenstrom^2)/((0.00456*H48))^2 -> 241.6011413 | H48: =B48*27.79+C48*19.86 -> 945.28 | I48: 54 | J48: 54 | K48: 43 | L48: 36 | M48: =0.831057*EXP(0.000889*G48) -> 1.030172764 | N48: =0.44905259*LN(Primärvolumenstrom)- 0.88958376 -> 0.9985443509 | P48: =IF($O$46=100,100,IF(WT="4L",31.432*LN($O$46)-45.157,21.402*LN($O$46)-0.5837)) -> 100 | R48: =IF($Q$46=100,100,IF(WT="4L",31.498*LN($Q$46)-45.397,25.624*LN($Q$46)-19.482)) -> 100 | S48: =IF($AK$10<$AK$11,-0.0125*($AK$11-$AK$10)+1,1) -> 1 | T48: =Primärvolumenstrom*U48 -> 371.7700206 | U48: =0.0055*G48+4.22 -> 5.548806277 | V48: =T48/(0.25*0.8)/3600 -> 0.5163472508 | W48: =IF($AK$10<$AK$11,0.0189*($AK$11-$AK$10)+1,1) -> 1 | X48: =IF($AK$10<$AK$11,-0.3822*(V48)+1.1147,1) -> 1 | Y48: 1 | Z48: 43 | AA48: 36 | AB48: =IF(Filter="MF",1,1.05) -> 1.05 | AD48: 6 | AE48: 34 | AF48: M | AH48: 32.55159627 | AI48: =IF(AND(G48<350,G48>100),G48,"-") -> 241.6011413 | AJ48: =IF(AI48<>"-",Primärvolumenstrom*0.335*($AK$7-$AK$8),"-") -> 224.45 | AK48: =IF(AI48<>"-",Z48*($AK$7-$AK$10)*(P48/100)*M48*N48*S48*AB48,"-") -> 464.445947 | AL48: 464.445947 | AM48: =IF(AI48<>"-",Primärvolumenstrom*0.335*($AR$8-$AR$7),"-") -> -89.78 | AN48: 388.8384673 | AO48: =IF(AI48<>"-",AJ48+AL48,"-") -> 688.895947 | AP48: 19.31747105 | AQ48: =IF(AI48<>"-",AM48+AN48,"-") -> 299.0584673 | AR48: =IF(AI48<>"-",$AR$10-((AN48/(4.2*AK$53/3.6))),"-") -> 29.22258238 | AS48: =IF(AK48<>"-",((T_PRIM+273)*Primärvolumenstrom/3600+U48*Primärvolumenstrom/3600*(T_ANSAUG+273)-AK48/(1176.56*1.00692))/(U48*Primärvolumenstrom/3600+Primärvolumenstrom/3600)-273,"-") -> 21.25644394 | AT48: =IF(AN48<>"-",((T_PRIM+273)*Primärvolumenstrom/3600+U48*Primärvolumenstrom/3600*(T_ANSAUG+273)+AN48/(1176.56*1.00692))/(U48*Primärvolumenstrom/3600+Primärvolumenstrom/3600)-273,"-") -> 27.16593828 | AV48: =VLOOKUP("Kunstoffdüsen",'Legende - Legend'!$B$5:$E$64,IF(Sprache="Deutsch",1,IF(Sprache="English",2,IF(Sprache="Francais",3,IF(Sprache="Italiano",4,IF(Sprache="Portugues",5,6))))),FALSE) -> Kunstoffdüsen | AW48: Plastic Nozzle
A49: 1051640 | B49: 28 | C49: 18 | D49: =0.043*G49+2.679 -> 9.877427052 | E49: =0.05*G49+2.309 -> 10.67926401 | F49: =IF(Primärvolumenstrom>70,5.7611*LN(Primärvolumenstrom)-23.047,"0") -> 0 | G49: =(Primärvolumenstrom^2)/((0.00456*H49))^2 -> 167.4052803 | H49: =B49*27.79+C49*19.86 -> 1135.6 | I49: 54 | J49: 54 | K49: 43 | L49: 36 | M49: =0.831057*EXP(0.000889*G49) -> 0.9644149796 | N49: =0.44905259*LN(Primärvolumenstrom)- 0.88958376 -> 0.9985443509 | P49: =IF($O$46=100,100,IF(WT="4L",31.432*LN($O$46)-45.157,21.402*LN($O$46)-0.5837)) -> 100 | R49: =IF($Q$46=100,100,IF(WT="4L",31.498*LN($Q$46)-45.397,25.624*LN($Q$46)-19.482)) -> 100 | S49: =IF($AK$10<$AK$11,-0.0125*($AK$11-$AK$10)+1,1) -> 1 | T49: =Primärvolumenstrom*U49 -> 344.4288458 | U49: =0.0055*G49+4.22 -> 5.140729042 | V49: =T49/(0.25*0.8)/3600 -> 0.4783733969 | W49: =IF($AK$10<$AK$11,0.0189*($AK$11-$AK$10)+1,1) -> 1 | X49: =IF($AK$10<$AK$11,-0.3822*(V49)+1.1147,1) -> 1 | Y49: 1 | Z49: 43 | AA49: 36 | AB49: =IF(Filter="MF",1,1.05) -> 1.05 | AD49: 25 | AE49: 15 | AF49: L | AH49: =IF(AI49<>"-",10*LOG10(B49*10^(D49/10)+C49*10^(E49/10))+F49,"-") -> 26.83661217 | AI49: =IF(AND(G49<350,G49>100),G49,"-") -> 167.4052803 | AJ49: =IF(AI49<>"-",Primärvolumenstrom*0.335*($AK$7-$AK$8),"-") -> 224.45 | AK49: =IF(AI49<>"-",Z49*($AK$7-$AK$10)*(P49/100)*M49*N49*S49*AB49,"-") -> 434.7995251 | AL49: 434.7995251 | AM49: =IF(AI49<>"-",Primärvolumenstrom*0.335*($AR$8-$AR$7),"-") -> -89.78 | AN49: 364.0182071 | AO49: =IF(AI49<>"-",AJ49+AL49,"-") -> 659.2495251 | AP49: 19.10571089 | AQ49: =IF(AI49<>"-",AM49+AN49,"-") -> 274.2382071 | AR49: =IF(AI49<>"-",$AR$10-((AN49/(4.2*AK$53/3.6))),"-") -> 29.39986995 | AS49: =IF(AK49<>"-",((T_PRIM+273)*Primärvolumenstrom/3600+U49*Primärvolumenstrom/3600*(T_ANSAUG+273)-AK49/(1176.56*1.00692))/(U49*Primärvolumenstrom/3600+Primärvolumenstrom/3600)-273,"-") -> 21.16017785 | AT49: =IF(AN49<>"-",((T_PRIM+273)*Primärvolumenstrom/3600+U49*Primärvolumenstrom/3600*(T_ANSAUG+273)+AN49/(1176.56*1.00692))/(U49*Primärvolumenstrom/3600+Primärvolumenstrom/3600)-273,"-") -> 27.0601018
A50: 1051636 | B50: 41 | C50: 5 | D50: =0.043*G50+2.679 -> 8.729107795 | E50: =0.05*G50+2.309 -> 9.344009064 | F50: =IF(Primärvolumenstrom>70,5.7611*LN(Primärvolumenstrom)-23.047,"0") -> 0 | G50: =(Primärvolumenstrom^2)/((0.00456*H50))^2 -> 140.7001813 | H50: =B50*27.79+C50*19.86 -> 1238.69 | I50: 54 | J50: 54 | K50: 43 | L50: 36 | M50: =0.831057*EXP(0.000889*G50) -> 0.9417886117 | N50: =0.44905259*LN(Primärvolumenstrom)- 0.88958376 -> 0.9985443509 | P50: =IF($O$46=100,100,IF(WT="4L",31.432*LN($O$46)-45.157,21.402*LN($O$46)-0.5837)) -> 100 | R50: =IF($Q$46=100,100,IF(WT="4L",31.498*LN($Q$46)-45.397,25.624*LN($Q$46)-19.482)) -> 100 | S50: =IF($AK$10<$AK$11,-0.0125*($AK$11-$AK$10)+1,1) -> 1 | T50: =Primärvolumenstrom*U50 -> 334.5880168 | U50: =0.0055*G50+4.22 -> 4.993850997 | V50: =T50/(0.25*0.8)/3600 -> 0.4647055789 | W50: =IF($AK$10<$AK$11,0.0189*($AK$11-$AK$10)+1,1) -> 1 | X50: =IF($AK$10<$AK$11,-0.3822*(V50)+1.1147,1) -> 1 | Y50: 1 | Z50: 43 | AA50: 36 | AB50: =IF(Filter="MF",1,1.05) -> 1.05 | AD50: 35 | AE50: 5 | AF50: XL | AH50: 25.4278992 | AI50: =IF(AND(G50<350,G50>100),G50,"-") -> 140.7001813 | AJ50: =IF(AI50<>"-",Primärvolumenstrom*0.335*($AK$7-$AK$8),"-") -> 224.45 | AK50: =IF(AI50<>"-",Z50*($AK$7-$AK$10)*(P50/100)*M50*N50*S50*AB50,"-") -> 424.5985906 | AL50: 424.5985906 | AM50: =IF(AI50<>"-",Primärvolumenstrom*0.335*($AR$8-$AR$7),"-") -> -89.78 | AN50: 355.4778898 | AO50: =IF(AI50<>"-",AJ50+AL50,"-") -> 649.0485906 | AP50: =IF(AK50<>"-",IF($AK$10<$AK$11,$AK$10+(AL50/(4.2*AK$52/3.6)),$AK$10+(AK50/(4.2*AK$52/3.6))),"-") -> 19.03284708 | AQ50: =IF(AI50<>"-",AM50+AN50,"-") -> 265.6978898 | AR50: =IF(AI50<>"-",$AR$10-((AN50/(4.2*AK$53/3.6))),"-") -> 29.46087222 | AS50: =IF(AK50<>"-",((T_PRIM+273)*Primärvolumenstrom/3600+U50*Primärvolumenstrom/3600*(T_ANSAUG+273)-AK50/(1176.56*1.00692))/(U50*Primärvolumenstrom/3600+Primärvolumenstrom/3600)-273,"-") -> 21.11876755 | AT50: =IF(AN50<>"-",((T_PRIM+273)*Primärvolumenstrom/3600+U50*Primärvolumenstrom/3600*(T_ANSAUG+273)+AN50/(1176.56*1.00692))/(U50*Primärvolumenstrom/3600+Primärvolumenstrom/3600)-273,"-") -> 27.02145643
AF51: =VLOOKUP("Nennwassermenge",'Legende - Legend'!$B$5:$E$64,IF(Sprache="Deutsch",1,IF(Sprache="English",2,IF(Sprache="Francais",3,IF(Sprache="Italiano",4,IF(Sprache="Portugues",5,6))))),FALSE) -> Nennwassermenge | AK51: =VLOOKUP("gewählte Wassermengen bei Dp Wasser:",'Legende - Legend'!$B$5:$E$64,IF(Sprache="Deutsch",1,IF(Sprache="English",2,IF(Sprache="Francais",3,IF(Sprache="Italiano",4,IF(Sprache="Portugues",5,6))))),FALSE) -> gewählte Wassermengen bei Dp Wasser:
AF52: wOK= | AG52: =IF(WT="2L",300,120) -> 120 | AH52: [kg/h] | AK52: 120 | AN52: [kg/h] | AO52: DpK = | AP52: =IF(WT="4L",0.0016*AK52^1.704,0.0005*AK52^1.8713) -> 5.585278405 | AQ52: [kPa]
AF53: wOH= | AG53: =IF(WT="2L",300,120) -> 120 | AH53: [kg/h] | AK53: 120 | AN53: [kg/h] | AO53: DpH = | AP53: =IF(WT="4L",0.0005*AK53^1.8606,0.0008*AK53^1.7892) -> 3.693980774 | AQ53: [kPa]
AF54: QE = | AG54: =IF(WT="2L",593,486) -> 486 | AH54: W | AJ54: =IF(AK52/AG52<0.2,"Kühlwassermenge mind. 20% von Nennwassermenge!",0) -> 0
AJ58: =IF(AK53/AG53<0.4,"Heizwassermenge mind. 40% von Nennwassermenge!",0) -> 0
AF59: =VLOOKUP("Eigenkonvektion bei Warmwasservorlaufttemperatur 70 °C, Raumlufttemperatur 20 °C und Nennwassermenge",'Legende - Legend'!$B$5:$E$64,IF(Sprache="Deutsch",1,IF(Sprache="English",2,IF(Sprache="Francais",3,IF(Sprache="Italiano",4,IF(Sprache="Portugues",5,6))))),FALSE) -> Eigenkonvektion bei Warmwasservorlaufttemperatur 70 °C, Raumlufttemperatur 20 °C und Nennwassermenge
AF60: ã LTG Aktiengesellschaft - 12.02.2015 | AV60: Wärmetauscher | AX60: Wert | AY60: Wert für Marko
AF61: =VLOOKUP("Angaben zu Toleranzen sowie weitere Spezifikationen sind der aktuellen LTG Bauteilmappe zu entnehmen.",'Legende - Legend'!$B$5:$E$64,IF(Sprache="Deutsch",1,IF(Sprache="English",2,IF(Sprache="Francais",3,IF(Sprache="Italiano",4,IF(Sprache="Portugues",5,6))))),FALSE) -> Angaben zu Toleranzen sowie weitere Spezifikationen sind der aktuellen LTG Bauteilmappe zu entnehmen. | AV61: =VLOOKUP("mit Filter",'Legende - Legend'!$B$5:$E$64,IF(Sprache="Deutsch",1,IF(Sprache="English",2,IF(Sprache="Francais",3,IF(Sprache="Italiano",4,IF(Sprache="Portugues",5,6))))),FALSE) -> mit Filter | AW61: mit Filter | AX61: ohne Filter | AY61: =IF(OR(AX61='Legende - Legend'!B32,AX61='Legende - Legend'!C32,AX61='Legende - Legend'!D32,AX61='Legende - Legend'!E32),"MF","OF") -> OF
B62: Eigenkonvektion bei Warmwasservorlaufttemperatur 70 °C, Raumlufttemperatur 20 °C und Nennwassermenge | AF62: =VLOOKUP("Eine Fehlerfreiheit des Programms kann nicht zugesichert werden. Im Zweifel gelten die technischen Daten der aktuellen LTG Bauteilmappe. ",'Legende - Legend'!$B$5:$E$64,IF(Sprache="Deutsch",1,IF(Sprache="English",2,IF(Sprache="Francais",3,IF(Sprache="Italiano",4,IF(Sprache="Portugues",5,6))))),FALSE) -> Eine Fehlerfreiheit des Programms kann nicht zugesichert werden. Im Zweifel gelten die technischen Daten der aktuellen LTG Bauteilmappe. | AV62: =VLOOKUP("ohne Filter",'Legende - Legend'!$B$5:$E$64,IF(Sprache="Deutsch",1,IF(Sprache="English",2,IF(Sprache="Francais",3,IF(Sprache="Italiano",4,IF(Sprache="Portugues",5,6))))),FALSE) -> ohne Filter | AW62: Plastic Nozzle
AF63: =VLOOKUP("Aus Programmierfehlern entstandener Schaden geht nicht zu Lasten der LTG. Technische Änderungen im Rahmen der Weiterentwicklung vorbehalten.",'Legende - Legend'!$B$5:$E$64,IF(Sprache="Deutsch",1,IF(Sprache="English",2,IF(Sprache="Francais",3,IF(Sprache="Italiano",4,IF(Sprache="Portugues",5,6))))),FALSE) -> Aus Programmierfehlern entstandener Schaden geht nicht zu Lasten der LTG. Technische Änderungen im Rahmen der Weiterentwicklung vorbehalten.
AF66: =VLOOKUP("Legende",'Legende - Legend'!$B$4:$E$64,IF(Sprache="Deutsch",1,IF(Sprache="English",2,IF(Sprache="Francais",3,IF(Sprache="Italiano",4,IF(Sprache="Portugues",5,6))))),FALSE) -> Legende
AF67: LWA [dB(A)] | AH67: =VLOOKUP("Schallleistung (+/- 3 dB)",'Legende - Legend'!$B$5:$E$64,IF(Sprache="Deutsch",1,IF(Sprache="English",2,IF(Sprache="Francais",3,IF(Sprache="Italiano",4,IF(Sprache="Portugues",5,6))))),FALSE) -> Schallleistung (+/- 3 dB) | CA67: QSH [W] | CC67: =VLOOKUP("Sekundärheizleistung (+/- 5%)",'Legende - Legend'!$B$5:$E$64,IF(Sprache="Deutsch",1,IF(Sprache="English",2,IF(Sprache="Francais",3,IF(Sprache="Italiano",4,IF(Sprache="Portugues",5,6))))),FALSE) -> Sekundärheizleistung (+/- 5%)
AF68: QPK [W] | AH68: =VLOOKUP("Primärkühlleistung",'Legende - Legend'!$B$5:$E$64,IF(Sprache="Deutsch",1,IF(Sprache="English",2,IF(Sprache="Francais",3,IF(Sprache="Italiano",4,IF(Sprache="Portugues",5,6))))),FALSE) -> Primärkühlleistung | CA68: Qkges [W] | CC68: =VLOOKUP("Gesamtkühlleistung (+/- 5%)",'Legende - Legend'!$B$5:$E$64,IF(Sprache="Deutsch",1,IF(Sprache="English",2,IF(Sprache="Francais",3,IF(Sprache="Italiano",4,IF(Sprache="Portugues",5,6))))),FALSE) -> Gesamtkühlleistung (+/- 5%)
AF69: Qsk [W] | AH69: =VLOOKUP("Sekundärkühlleistung bei nicht kondensierendem Betrieb (+/- 5%)",'Legende - Legend'!$B$5:$E$64,IF(Sprache="Deutsch",1,IF(Sprache="English",2,IF(Sprache="Francais",3,IF(Sprache="Italiano",4,IF(Sprache="Portugues",5,6))))),FALSE) -> Sekundärkühlleistung bei nicht kondensierendem Betrieb (+/- 5%) | CA69: Dp [Pa] | CC69: =VLOOKUP("statischer Luftdruck am Primärluftstutzen",'Legende - Legend'!$B$5:$E$64,IF(Sprache="Deutsch",1,IF(Sprache="English",2,IF(Sprache="Francais",3,IF(Sprache="Italiano",4,IF(Sprache="Portugues",5,6))))),FALSE) -> Statischer Luftdruck am Primärluftstutzen
AF70: Qsksens [W] | AH70: =VLOOKUP("Sekundärkühlleistung (sensibel) bei kondensierendem Betrieb (+/- 5%)",'Legende - Legend'!$B$5:$E$64,IF(Sprache="Deutsch",1,IF(Sprache="English",2,IF(Sprache="Francais",3,IF(Sprache="Italiano",4,IF(Sprache="Portugues",5,6))))),FALSE) -> Sekundärkühlleistung (sensibel) bei kondensierendem Betrieb (+/- 5%) | CA70: tKWRL [°C] | CC70: =VLOOKUP("Kaltwasser-Rücklauftemperatur",'Legende - Legend'!$B$5:$E$64,IF(Sprache="Deutsch",1,IF(Sprache="English",2,IF(Sprache="Francais",3,IF(Sprache="Italiano",4,IF(Sprache="Portugues",5,6))))),FALSE) -> Kaltwasser-Rücklauftemperatur
AF71: Qsktotal [W] | AH71: =VLOOKUP("totale Sekundärkühlleistung (+/- 5%)",'Legende - Legend'!$B$5:$E$64,IF(Sprache="Deutsch",1,IF(Sprache="English",2,IF(Sprache="Francais",3,IF(Sprache="Italiano",4,IF(Sprache="Portugues",5,6))))),FALSE) -> totale Sekundärkühlleistung (+/- 5%) | CA71: tWWRL [°C] | CC71: =VLOOKUP("Warmwasser-Rücklauftemperatur",'Legende - Legend'!$B$5:$E$64,IF(Sprache="Deutsch",1,IF(Sprache="English",2,IF(Sprache="Francais",3,IF(Sprache="Italiano",4,IF(Sprache="Portugues",5,6))))),FALSE) -> Warmwasser-Rücklauftemperatur
AF72: tzuH [°C] | AH72: =VLOOKUP("Zulufttemperatur im Heizfall",'Legende - Legend'!$B$5:$E$64,IF(Sprache="Deutsch",1,IF(Sprache="English",2,IF(Sprache="Francais",3,IF(Sprache="Italiano",4,IF(Sprache="Portugues",5,6))))),FALSE) -> Zulufttemperatur im Heizfall | CA72: tzuK [°C] | CC72: =VLOOKUP("Zulufttemperatur im Kühlfall",'Legende - Legend'!$B$5:$E$64,IF(Sprache="Deutsch",1,IF(Sprache="English",2,IF(Sprache="Francais",3,IF(Sprache="Italiano",4,IF(Sprache="Portugues",5,6))))),FALSE) -> Zulufttemperatur im Kühlfall
AF73: QPH [W] | AH73: =VLOOKUP("Primärheizleistung (negativ = kühlen)",'Legende - Legend'!$B$5:$E$64,IF(Sprache="Deutsch",1,IF(Sprache="English",2,IF(Sprache="Francais",3,IF(Sprache="Italiano",4,IF(Sprache="Portugues",5,6))))),FALSE) -> Primärheizleistung (negativ = kühlen) | CA73: QHges [W] | CC73: =VLOOKUP("Gesamtheizleistung",'Legende - Legend'!$B$5:$E$64,IF(Sprache="Deutsch",1,IF(Sprache="English",2,IF(Sprache="Francais",3,IF(Sprache="Italiano",4,IF(Sprache="Portugues",5,6))))),FALSE) -> Gesamtheizleistung
AK77: Deutsch
AK78: English
AK79: Francais
AK80: Italiano

Sheet Legende - Legend (hidden)
E2: LTG Aktiengesellschaft
A4: Parameter | B4: Legende | C4: Legend | D4: Légende | E4: Legenda
A5: - | B5: Kühlfall | C5: Cooling Mode | D5: opération eau froide | E5: In raffescamento
A6: - | B6: Heizfall | C6: Heating Mode | D6: opération eau chaude | E6: In riscaldamento
A7: - | B7: Ansaugtemperatur | C7: Intake Air Temperature | D7: Température de l'air ambiant | E7: Temperatura aria in ingresso
A8: - | B8: Wasservorlauftemperatur | C8: Water Supply Temperature | D8: Temperature de l'eau amenée | E8: Temperatura acqua in ingresso
A9: - | B9: Baugröße | C9: Size | D9: Modèle | E9: Taglia
A10: - | B10: Nennwassermenge | C10: Nominal Water Flow Rate | D10: débit d'eau nominale | E10: Portata acqua nominale
A11: - | B11: Auswahl | C11: Choice | D11: Sélection | E11: Scelta
A12: - | B12: Kühlen | C12: Cooling | D12: Refroidissement | E12: Raffrescamento
A13: - | B13: Heizen | C13: Heating | D13: Chauffer | E13: Riscaldamento
A14: - | B14: projektierte Leistung | C14: Required Capacity | D14: Objectif fixé | E14: Potenzialità richiesta di progetto
A15: - | B15: Beg. Kondensatbildung bei > | C15: Event of condensation > | D15: Condensation commence a
A16: - | B16: Primärlufttemperatur | C16: Primary Air Temperature | D16: Témperature de l´air primaire | E16: temperatura dell'aria
A17: - | B17: Primärluftvolumenstrom | C17: Primary Air flow | D17: Debit de l´air primaire | E17: portata d'airia
A18: - | B18: rel. Raumluftfeuchte | C18: Air humidity | D18: hunidité rélatif | E18: l’umidità relativa
A19: - | B19: Baugröße 500 | C19: Size 500 | D19: taille 500 | E19: Taglia 500
A20: - | B20: Baugröße 630 | C20: Size 630 | D20: Taille 630 | E20: Taglia 630
A21: - | B21: Baugröße 800 | C21: Size 800 | D21: Taille 800 | E21: Taglia 800
A22: - | B22: Baugröße 1000 | C22: Size 1000 | D22: Taille 1000 | E22: Taglia 1000
A23: - | B23: Baugröße 1250 | C23: Size 1250 | D23: Taille 1250 | E23: Taglia 1250
A24: - | B24: Düsenbelegung anzeigen (Kunstoffdüsen) | C24: Show nozzle equipment (Plastic nozzle) | D24: Voir arrangement des buses | E24: Indicare equipaggiamento ugelli (ugelli in plastica)
A25: - | B25: Düsenbelegung (Kunstoffdüsen) | C25: nozzle equipment (Plastic nozzle) | D25: arrangement des buses ( en plastique ) | E25: Equipaggiamento ugelli (ugelli in plastica)
A26: - | B26: Düsenvariante | C26: Nozzle selection | D26: Variante buses | E26: Variante ugello
A27: - | B27: Taupunkttemperatur | C27: Dew-point Temperature | D27: Point rosé | E27: Punto di rugiada
A28: - | B28: gewählte Wassermengen bei Dp Wasser: | C28: selected water volume flow at Dp | D28: debit d`eau @perte pression | E28: Portata acqua selezionata con Dp
A29: - | B29: LTG Induktionsgerät HFG | C29: LTG Induction Unit HFG | D29: LTG Ejécto Convecteur HFG | E29: Unità ad indizione LTG HFG
A30: - | B30: 2-Leiter-System | C30: 2-Pipe-System | D30: Système 2 tuyaux | E30: Sistema 2 tubi
B31: 4-Leiter-System | C31: 4-Pipe-System | D31: Système 4 tuyaux | E31: Sistema 4 tubi
B32: mit Filter | C32: With filter | D32: avec un filtre | E32: con filtro
B33: ohne Filter | C33: Without filter | D33: sans filtre | E33: senza filtro
B34: Filter | C34: Filter | D34: filtre | E34: filtro
B35: Zulufttemperatur im Heizfall | C35: Supply temperature (heating mode) | D35: La température de soufflage (mode chauffage) | E35: di temperatura con aria di mandata (riscaldamento)
B36: Zulufttemperatur im Kühlfall | C36: Supply temperature (cooling mode) | D36: La température de soufflage (mode refroidissement) | E36: di temperatura con aria di mandata (raffescamento)
A37: - | B37: Angaben zu Toleranzen sowie weitere Spezifikationen sind der aktuellen LTG Bauteilmappe zu entnehmen. | C37: Data for tolerances and other specification are published in LTG technical literature | D37: Voir classeur actuel pour informations complementaires et tolerances des donnés techniques | E37: Dati sulle tolleranze e altre specifiche sono pubblicate sulla documentazione LTG
A38: - | B38: Eine Fehlerfreiheit des Programms kann nicht zugesichert werden. Im Zweifel gelten die technischen Daten der aktuellen LTG Bauteilmappe. | C38: Accuracy of selection software can not be ensured. In case of doubts data of LTG technical literature is valid. | D38: Sous Réserve des erreurs du programme, en cas de doute il faut utiliser les données techniques du prospectus valable | E38: i dati pubblicati sui cataloghi LTG sono validi
A39: - | B39: Aus Programmierfehlern entstandener Schaden geht nicht zu Lasten der LTG. Technische Änderungen im Rahmen der Weiterentwicklung vorbehalten. | C39: Damage caused by programming errors is not at LTG expenses. Subject to technical specifications. | D39: LTG Aktiengesellschaft refuse la résponsabilite d`erreurs de programmer y compris Dommage eventuel causé par le programme. | E39: Danni per errori nei programmi di selezione non possono essere addebitati a LTG.Soggetti a specifiche tecniche.
A40: - | B40: Projekt | C40: Project | D40: Projet | E40: Progetto
A41: - | B41: Datum | C41: Date | D41: Date | E41: Data
A42: - | B42: Name | C42: Editor: | D42: Nom | E42: Responsabile
A43: - | B43: Wärmetauscher | C43: Heat exchanger | D43: Echangeur de chaleur | E43: Calore
A44: - | B44: Metalldüsen | C44: Metall Nozzle | D44: Buse metallique | E44: Ugelli in metallo
A45: - | B45: Kunstoffdüsen | C45: Plastic Nozzle | D45: Buse en plastique | E45: Ugelli in plasitca
A46: Dp [Pa] | B46: Statischer Luftdruck am Primärluftstutzen | C46: initial air pressure | D46: pression statique de l'air primaire | E46: Pressione statica ingresso
A47: VP [m³/h] | B47: empfohlener Auslegungs-Primärluftvolmenstrompro Gerät (+/- 10%) | C47: recommended primary air flow (+/- 10 %) | D47: débit de l'air primaire (+/- 10 %) | E47: Portata aria primaria consigliata (+/- 10%)
A48: LWA [dB(A)] | B48: Schallleistung (+/- 3 dB) | C48: Sound powerr level (+/- 3 dB) | D48: niveau puissance sonore (+/- 3dB) | E48: Livello di potenza sonora (+/- 3dB)
A49: LA18 [dB(A)] | B49: Schalldruckpegel bei 18 m² Sabine (+/- 3 dB) | C49: Sound pressure level at 18 m² Sabine (+/- 3 dB) | D49: Niveau pression sonore , 18 m2 Sabine (+/- 3 dB) | E49: Livello di pressione sonora a 18 mq Sabine (+/- 3dB).
A50: QPK [W] | B50: Primärkühlleistung | C50: Primary cooling capacity | D50: puissance frigorifique de l`air primaire (+/- 5%) | E50: Potenzialità raffrescamento aria primaria
A51: QSK [W] | B51: Sekundärkühlleistung bei nicht kondensierendem Betrieb (+/- 5%) | C51: Secondary cooling capacity at non-condensating operation (+/- 5 %) | D51: puissance frigorifique secondaire (échanger thermique) (+/- 5 %) | E51: Potenzialità raffrescamento (sensibile) sul ricircolo con funzionamento senza condensa (+/- 5%)
A52: QPH [W] | B52: Primärheizleistung (negativ = kühlen) | C52: Primary heating capacity (negative = cooling) | D52: puissance calorifique de l`air primaire (+/- 5%) | E52: Potenzialità riscaldamento aria primaria (negativo se raffrescamento )
A53: QSH [W] | B53: Sekundärheizleistung (+/- 5%) | C53: Secondary heating capacity (+/- 5 %) | D53: puissance calorifique secondaire (+/- 5%) | E53: Potenzialità di riscaldamento secondaria (+/- 5%)
A54: QKges [W] | B54: Gesamtkühlleistung (+/- 5%) | C54: Total cooling capacity (+/- 5%) | D54: puissance frigorifique totale | E54: Potenzialità raffrescamento totale (+/- 5%)
A55: QHges [W] | B55: Gesamtheizleistung | C55: Total heating capacity | D55: puissance calorifique totale | E55: Potenzialità riscaldamento
A56: tKWRL [°C] | B56: Kaltwasser-Rücklauftemperatur | C56: Cold water return temperature | D56: Temperatur sorti eau froide | E56: Temperatura ritorno acqua refrigerata
A57: tWWRL [°C] | B57: Warmwasser-Rücklauftemperatur | C57: Hot water return temperature | D57: Temperature retour eau chaude | E57: Temperatura ritorno acqua calda
A58: wOK [kg/h] | B58: Nennwassermenge Kühlen | C58: Nominal cold water flow rate | D58: débit d'eau froide nominale | E58: Portata nominale acqua refrigerata
A59: wOH [kg/h] | B59: Nennwassermenge Heizen | C59: Nominal hot water flow rate | D59: débit d'eau chaude nominale | E59: Portata nominale acqua calda
A60: DpK [kPa] | B60: wasserseitiger Druckverlust über Kühlregister | C60: Pressure loss cooling coil (water-side) | D60: perte de charge eau froide | E60: Perdita di carico batteria fredda (lato acqua)
A61: DpH [kPa] | B61: wasserseitiger Druckverlust Heizregister | C61: Pressure loss heating coil (water-side) | D61: perte de charge eau chaude | E61: Perdita di carico batteria fcalda (lato acqua)
A62: QE [W] | B62: Eigenkonvektion bei Warmwasservorlaufttemperatur 70 °C, Raumlufttemperatur 20 °C und Nennwassermenge | C62: Heating capacity natural convection, at hot water temperature = 70 °C, room air temperature 20 °C and nominal hot water flow | D62: puissance calorifique convection naturelle | E62: Riscaldamento per convezione naturale, acqua a 70 °C, ambiente 20 °C, portata acqua nominale
A63: Qskses [W] | B63: Sekundärkühlleistung (sensibel) bei kondensierendem Betrieb (+/- 5%) | C63: Sekundary sensible cooling capacity (+/- 5%) | D63: puissance frigorifique sensible | E63: Resa sensibile raffreddamento (+/- 5%)
A64: Qsktot | B64: totale Sekundärkühlleistung (+/- 5%) | C64: Sekundary total cooling capacity (+/- 5%) | D64: puissance frigorifique totale | E64: Lunghezza totale (+/- 5%)
A71: ã LTG Aktiengesellschaft - 21.06.2012
A72: Angaben zu Toleranzen sowie weitere Spezifikationen sind der aktuellen LTG Bauteilmappe zu entnehmen.
A73: Eine Fehlerfreiheit des Programms kann nicht zugesichert werden. Im Zweifel gelten die technischen Daten der aktuellen LTG Bauteilmappe.
A74: Aus Programmierfehlern entstandener Schaden geht nicht zu Lasten der LTG. Technische Änderungen im Rahmen der Weiterentwicklung vorbehalten.

Sheet Tabelle1 (hidden)
